Workbook

Sheet Title I, Part C
M1: Place an "X" by the applicable response.
D2: Virginia Department of Education | M2: X | N2: Original
D3: Office of Program Administration and Accountability
D4: P. O. Box 2120 | N4: Revision:
D5: Richmond, Virginia 23218-2120 | N5: Revision #
N6: Date:
N7: Explain
F8: A. COVER PAGE | N8: Amendment:
E9: Title I, Part C, Education of Migratory Children | N9: Amendment #
E10: 2018-2019 Individual Program Application | N10: Date:
E11: Due by July 1, 2018 | N11: Explain
A12: Under the No Child Left Behind Act of 2001, Public Law 107-110 | C12: Elementary and Secondary Education Act of 1965 (ESEA), as amended by
C13: the Every Student Succeeds Act of 2015 (ESSA), Public Law 114-95
A14: To be Completed by School Division
A15: Applicant (Legal Name of Agency) | H15: Division | J15: Title I, Part C, Coordinator
A16: ALBEMARLE COUNTY PUBLIC SCHOOLS | H16: Number | I16: =IF(ISBLANK(A16)," ",VLOOKUP(A16,Prefills!A2:B147,2)) -> 2 | J16: Sharon Root
A17: Mailing Address (Street, City or Town, Zip Code) | H17: Phone: | J17: 434-296-3872 | M17: Ext:
A18: 401 McIntire Road Charlottesville, VA 22902 | H18: Email:
H19: root@k12albemarle.org
A22: LOCAL EDUCATIONAL AGENCY CERTIFICATION
A23: Use of Funds: The applicant designated above applies for an allocation of federal assistance as appropriated under ESEA. Funds are available to support local education reform efforts that are consistent with statewide education reform efforts to: 1) provide funding to implement promising education reform programs and school improvement programs based on evidence-based research; 2) provide a continuing source of innovative and educational improvement; 3) meet the educational needs of all students; and 4) develop and implement education programs to improve student achievement and teacher performance. Specific uses of funds for this application are found in the "Guidelines, Instructions, and Assurances" document.
A25: Assurances: The local educational agency assures that the Title I, Part C, program will be administered and implemented in compliance with all applicable statutes, regulations, policies, program plans, and applications. Additionally, the local educational agency agrees by signing below to implement the general and program specific assurances located in the “Application Guidelines, Instructions, and Assurances” document. The assurances and signed cover page are to be retained at the division level.
A27: Certification: We hereby certify that, to the best of our knowledge, the information contained in this application is correct. The agency named above has authorized us as its representatives to file this application, and such action is recorded in the minutes of the School Board meeting held
A28: on | B28: 2018-06-14 | E28: .
A31: Superintendent’s Signature | H31: Board Chairperson’s Signature
A32: Dr. Pamela Moran | H32: Dr. Katherine Acuff
A33: Superintendent’s Name | H33: Board Chairperson’s Name
A34: 2018-06-14 | H34: 2018-06-14
A35: Date | H35: Date
A37: Application Submission, Approval, and LEA Expenditure of Funds: Applications for Federal Funds are due by July 1, 2018. Revisions and Amendments should be submitted in a timely manner. In order for the funds to be expendable by July 1, 2018, the electronic application must be received at the Virginia Department of Education by July 1, 2018, through the file submission process of the Online Management of Education Grant Awards (OMEGA) system.
A39: An Award Notification is issued by the Virginia Department of Education through OMEGA once an application is fully approved and the allocation is available.
A41: Page 1
E42: School Division: | G42: =$A$16 -> ALBEMARLE COUNTY PUBLIC SCHOOLS | M42: Division Number: | P42: =$I$16 -> 2
A43: APPLICATION INFORMATION
A45: 2017- 2018 | C45: 2017-2018 | E45: PROGRAM | N45: 2018-2019
A46: Allocation | C46: Consolidated Yes or No | N46: Allocation
A47: =IF(ISBLANK($A$16)," ",VLOOKUP($I$16,Prefills!$AD$3:$AG$142,4)) -> 142116.01 | C47: No | E47: Title I, Part C, Education of Migratory Children | N47: =SUM(K48:L49) -> 142116.01 | S47: Yes | T47: No
E48: a. Division Allocation | J48: Subtotal | L48: 142116.01
E49: b. Regional Program - Total of allocations for all divisions in the regional program | J49: Subtotal | L49: 0
A54: TRANSFERABILITY
A56: Section 5103(b)(2) of the Every Student Succeeds Act allows LEAs to transfer funds between certain qualifying federal programs. If funds are transferred out of the Title II, Part A, or Title IV, Part A programs, PRIOR APPROVAL IS REQUIRED, and a separate Transferability approval form must be submitted. The transfer request form is available at
A57: http://www.doe.virginia.gov/federal_programs/esea/forms/lea_funds_transfer_request.docx.
A59: Program from which funds will be transferred | G59: Select program(s) TO which funds will be transferred: | N59: Amount
A60: Title II, Part A | F60: TO | G60: Title I, Part C, Education of Migratory Children
A62: Program from which funds will be transferred | G62: Select program(s) TO which funds will be transferred: | N62: Amount
A63: Title IV, Part A | F63: TO | G63: Title I, Part C, Education of Migratory Children
A65: Page 2
E66: School Division: | G66: =$A$16 -> ALBEMARLE COUNTY PUBLIC SCHOOLS | M66: Division Number: | P66: =$I$16 -> 2
A67: REVISIONS AND AMENDMENTS
A69: Place an "X" in the first box indicating whether it is a revision or amendment. Enter the date of the revision or amendment. Indicate the tab(s) that have been changed. Provide a concise description of changes (for example, "Programmatic Changes--purchase of additional reading materials, object code 6000; Budget Changes--decreased travel budget in object code 5000 and increased materials to purchase additional reading materials in object code 6000"). When completing an amendment, changes to the program overview may be reflected as additions at the end of the narrative. NOTE: Any changes to the program budget should first be reflected in an amended application, followed by a budget transfer within 7 business days of approval of the amended application. Budget transfers will not be accepted without an approved amended application reflecting budget changes.
A70: 1. | B70: Revision | F70: Date:
B71: Amendment | F71: Date:
A73: 2. | B73: Revision | F73: Date:
B74: Amendment | F74: Date:
A76: 3. | B76: Revision | F76: Date:
B77: Amendment | F77: Date:
A79: 4. | B79: Revision | F79: Date:
B80: Amendment | F80: Date:
A82: 5. | B82: Revision | F82: Date:
B83: Amendment | F83: Date:
A85: 6. | B85: Revision | F85: Date:
B86: Amendment | F86: Date:
A88: 7. | B88: Revision | F88: Date:
B89: Amendment | F89: Date:
A91: 8. | B91: Revision | F91: Date:
B92: Amendment | F92: Date:
A94: 9. | B94: Revision | F94: Date:
B95: Amendment | F95: Date:
A97: Page 3
E98: School Division: | G98: =$A$16 -> ALBEMARLE COUNTY PUBLIC SCHOOLS | M98: Division Number: | P98: =$I$16 -> 2
A99: B. PROGRAM OVERVIEW (2 PAGES)
A100: In narrative format:
A101: 1. | B101: Describe how the Migrant Education Program (MEP) identifies new and existing migrant students including birth to age 3, ages 3-5, grades K-12, and out-of-school youth. Include the most common qualifying activities and peak seasons for identification and recruitment.
A102: 2. | B102: Describe the instructional programs or program services to be developed with the requested federal funds based on the results of the division/regional comprehensive needs assessment. Include the process used by the MEP to identify migrant students with the greatest need as priority for services. Include the targeted population(s). (Examples are: ESEA subgroups of students, homeless and migrant students, instructional and administrative staff, paraprofessionals, parents, etc.)
A103: 3. | B103: Discuss how the division/regional MEP will contribute to the attainment of the ESEA goals below.
C104: • Supporting student mastery of K-12 college-and-career ready reading and mathematics standards, and attainment of proficiency or better on corresponding assessments;
C105: • For high schools with a graduating class, supporting student completion of graduation requirements in a timely fashion; and
C106: • Ensuring that students are taught by effective teachers meeting Virginia licensing and professional teaching requirements and providing meaningful professional development and support to promote effective instruction to increase student achievement.
A107: 4. | B107: Provide a description of the needs assessment that was conducted to support the proposed activities.
A108: The Albemarle County Regional Migrant Program includes the counties of Albemarle, Alleghany, Augusta, Chesterfield, Culpeper, Cumberland, Fluvanna, Goochland, Greene, Hanover, Louisa, Lunenburg, Madison, Nelson, Nottoway, Orange and Rockbridge, as well as the cities of Charlottesville, Staunton and Waynesboro. This regional program features an adaptable system, designed to locate all eligible Migrant students residing in the region and to evaluate their educational needs, offering services to meet these needs. All students are enrolled in school, or if they are of legal age to drop out, they are offered alternative educational services; our program is designed to fulfill the individual educational needs of each student. The Migrant population fluctuates throughout the year, with the highest number present from June through October, during the fruit harvest seasons. Apple and peach pruning, picking and packing, are the traditional activities, but there are workers arriving to work in grape orchards and vineyards, as well as nurseries, as those industries expand in the region. Migrant students in the area are 99% Hispanic and 99% Limited English Speakers. The majority of the students or their parents have come from Mexico. A Comprehensive Needs Assessment is updated each year to reflect current test scores and changing needs.
A109: English for Speakers of Other Languages (ESOL) instruction is the primary educational need for all of the students. Goals for our program are: 1) Help each Migrant student meet the Virginia Standards of Learning 2) Accelerate Learning 3) Motivate each Migrant student to increase her/his language, reading and math skills 4) Increase each student's ability to benefit from the education services by meeting health, clothing and nutritional needs that are identified 5) Involve the students in educational, cultural, social and bilingual experiences and activities which will motivate learning and reinforce self image; 6) Enable parents to become effective supporters of their children's educational success through Parent Involvement, Family Literacy, and Training; and 7) Provide on-site English and Family Literacy classes at night for students who work during the day. Methods used to achieve these goals include: 1. During the regular school year, providing the student individual or small group tutorial services and instruction in basic skills, ESOL, and study skills, both in and out of the school setting in coordination with his/her regular classroom teacher. 2. During the summer, providing summer school opportunities including home/camp-based instruction, Migrant Literacy Net
A110: instruction, night ESOL classes, inclusion in the Parks & Recreation Program, art camp, computer classes, library reading programs, SAT preparation, internships, and school system-sponsored enrichment programs, and summer school. 3. After-school activities held in camps or homes including tutoring, Migrant Literacy Net instruction, basic skill and ESOL instruction, SOL preparation, enrichment, nutrition, study skills, and pre-school. 4. Night classes are held in the camps providing ESOL instruction. 5. Parent Involvement activities include bilingual Family Literacy, PAC meetings, learning celebrations, interpretation at school activities, and Parent Training. 6. Counseling and mentors are provided. 7. Enrollment is encouraged in existing community programs such as Head Start, Bright Stars, private pre-schools, After-School Enrichment, and adult ESOL classes. 8. Intensive coordination with, and utilization of, all available community resources takes place.
A112: Page 4
E113: School Division: | G113: =$A$16 -> ALBEMARLE COUNTY PUBLIC SCHOOLS | M113: Division Number: | P113: =$I$16 -> 2
A114: B. PROGRAM OVERVIEW (CONTINUED)
A115: 9. Outside funding is secured, e.g., Adult Education Integrated English Language Civics, Family Literacy, and private foundation grants to improve the quality of services, establish new programs, and pilot new methodologies. 10. Intensive coordination with the local Title I, Title III, K-12 ESOL, Homeless, and Adult Education Programs takes place. An individual Education Plan is developed for each Migrant student. Factors include level of English Language Proficiency, age appropriate grade placement, repeating a grade level, general performance level, Virginia Standards of Learning, attendance, number of schools attended, recent moves, parent evaluation and recommendation, parent educational needs, and classroom teacher evaluation and recommendation. The student's portfolio is evaluated and a plan developed in coordination with the parent, student, and classroom teacher. Types of services and support are assessed and adapted each semester to reflect changes in evaluation factors. The particular assessments vary among school divisions. Tools include Qualitative Reading Inventory, Curriculum-Based Measurement, Developmental Spelling Analysis, Running Record, PALS, Wilson, Woodcock Munoz, RIGBY, MAP SNAP, ACAMP, SRA, WAPT WIDA Model, WIDA Access, Best Literacy, CASAS Life Skills, and SPL leveling.
A116: The goal is to work as a team member with the classroom teacher to develop a coordinated plan to assure meeting VA Performance Standards. Updated spreadsheets are used by the Migrant staff as a team to continuously evaluate the level of services provided, assure full coverage, target needs and make changes as needed. Data utilized includes SOL scores, classroom performance level, English Language Proficiency, frequency and type of direct service, Migrant status, and high school and verified credits. Need factors weighed in determining the extent of service and number of hours of extended learning time include current danger of not meeting the VA Standards of Learning. Priority 1 students are served the most intensively, Priority 2 second, and COS last. Determination to servce a COS is documented. Migrant students are offered some level of service through use of a large volunteer system and extensive collaboration with
A117: other programs. Identification and recruitment of eligible Migrant students are priorities and integral ongoing components with the Albemarle Migrant Education Program. Five objectives have been developed and fully implemented. The "Albemarle Regional ID&R Notebook" is regularly utilized to document the procedures used to meet the objectives and formulate an ongoing workable process with additional goals and specific objectives each year. This ID&R Plan builds upon itself and grows each year to develop better techniques to meet the needs of each school system within the Albemarle region. It has proven to be an adaptable, valuable tool. Specific efforts and content information are documented including dates and names within separate sections of the notebook for each school system. The ID&R Plan is discussed at each staff meeting with up-to-date numbers for the current year. Meetings are held annually with the Virginia Employment Commission (VEC) Farm Placement Specialists, Ken Shaver (State) and Lawrence Uberte (Regional) to share
A118: information and identify new locations for recruitment. We stay in regular contact and visit some sites together. We attend meetings to promote collaboration with others who share our clientele, e.g. Nelson area Hispanic Summit and Head Start. We have trained a previous bilingual Migrant student, Jon Valencia, to recruit and provide mentorships. The previous VA State Migrant Recruiter, Elaine Cecelski, supplements recruiting efforts. A prior recruiter, Vanessa Hale, works with Rural Health for Blue Ridge Medical Center and visits Migrant camps with current recruiters. She contacts us if she identifies eligible Migrant students in her role as a Spanish-speaking Outreach Worker.
A120: Page 5
E121: School Division: | G121: =$A$16 -> ALBEMARLE COUNTY PUBLIC SCHOOLS | M121: Division Number: | P121: =$I$16 -> 2
A122: C. COORDINATION OF SERVICES (2 PAGES)
A123: Describe the program services/activities that will be coordinated between the MEP and other federal, state, and local programs. Describe the collaboration of MEP staff, parents, and the community to provide services and activities that will contribute to the attainment of the measurable objectives in the application. In your response, include pertinent information from any of the following that may be applicable:
A124: 1. | C124: Plans for assisting preschool children in the transition from early childhood programs, such as Title I preschool programs, Head Start, or state-funded preschool programs;
A125: 2. | C125: Coordination and integration of federal, state, and local services and programs, including programs supported under ESEA, violence prevention programs, nutrition programs, housing programs, Head Start, adult education, career and technical education, and job training;
A126: 3. | C126: Plans for coordinating and integrating federal program funds in the application used in conjunction with other federal, state, and local funds to support services to students, especially students in the targeted subgroups, in order to increase program effectiveness, eliminate duplication, and reduce fragmentation of the instructional program; and
A127: 4. | C127: Provisions for the arranged transition of students classified as limited English proficient, disabled students, disadvantaged (educationally and economically), migratory students, homeless children and youth, neglected or delinquent youth, and youth who are at-risk of dropping out of school.
A128: Albemarle County Adult Education - English classes, parent training, brochures, website for Spanish-speaking parents of ACPS students, Family Literacy for LEP parents. Albemarle County Bright Stars PreK Program - Referrals and enrollment, pre-school and K-5th grade services. Albemarle County Schools - Professional development, instructional support, office space, computers, technology support, bookkeeping and staff. Albemarle County Title I - Staff, materials, collaboration with techniques and resources. Albemarle County DSS Child Protective Services - Child safety, referrals Albemarle County Health Department - Outreach materials, visit classes, make appointments, offer TB tests, collaboration on commu-
A129: nity emergencies, provide information in Spanish on special subjects as needed, such as flu epidemic prevention, flood/hurricane information and preparedness. Albemarle Co. Homeless Education - Tutoring, school supplies, food, clothes, enrollment assistance, transportation, school placement. Albemarle County Schools Food & Nutrition - Automatic free lunch program. Albemarle County Parks & Recreation - Scholarships for enrichment programs. Albemarle High School Spanish Honor Society - Holiday food baskets, hygiene kits, caps, gloves, etc. Albemarle K-12 ESOL, Title III - Identification & recruitment, materials, training, collaboration on children's ESOL homework help room and student learning plans and shared evaluation, data, extended learning time/tutoring, ESOL Summer program, Red Hill Family Night.
A130: Albemarle County Dept. of Transportation - Transportation Albemarle County Dept. of Social Services - Books and tuition if specific training is needed, before school and after school tuition, in-school Family Workers, and food stamps. Anonymous Donors - Money to purchase books and dictionaries for students to keep, and computers. Augusta County Food & Nutrition - Automatic free lunch arrangements. Basic United Methodist Church - Tutoring, school supplies/backpacks, food, clothes. Batesville Ruritan Club - Monetary donations: dictionaries, linens, warm blankets, backpacks/school supplies distributed to students. Be Well Adjusted Chiropractic - Holiday books and toy donations.
A132: Page 6
E133: School Division: | G133: =$A$16 -> ALBEMARLE COUNTY PUBLIC SCHOOLS | M133: Division Number: | P133: =$I$16 -> 2
A134: C. COORDINATION OF SERVICES (CONTINUED)
A135: Blue Ridge Medical Center - Assistance with Medicaid and FAMIS applications, interpretation, teach health issues, make referrals and appointments, arrange transportation, collaborate on camp visits, ID&R referrals, Nelson Hispanic Community Day. Boys and Girls Club - Student tutoring, leadership, enrichment programs. Charlottesville Children's Dental Clinic - Dental care. Charlottesville City Schools Food & Nutrition - Automatic free lunch. Charlottesville Pregnancy Center - Consultations, clothing, cribs, baby supplies. Child Health Partnership (CHIP) - Transportation, interpretation, doctor appointments, case management, and ID&R. Church of the Incarnation - Baby items, donations, GED in Spanish classes. Computers for Kids - Mentorship computer program for students.
A136: Cove Presbyterian Church - Preschool, school supplies, blankets, money donations. Creciendo Juntos (Growing Together) - Education WorkGroup collaboration, provider presentations and forums, ID&R. Crossroads Family Medicine - Recruitment and outreach to Migrant population. Culpeper Health Department - Recruitment and social services. Culpeper Schools Food & Nutrition - Automatic free lunch. Ganelle Cook Scholarship Committee - Collaboration [Community Foundation of the Central Blue Ridge sponsors Ganelle Cook college scholarship for Hispanic students, sponsor of 30 college scholarships] Greater Augusta Volunteer Center (United Way) - Volunteers. 4-H - Scholarships and summer programs for students including leadership training.
A137: Habitat for Humanity - Information and referrals regarding opportunities shared with settled-out families. Insurance for Child Project - Insurance for children. International Rescue Committee - Refugee Dialogue Meeting collaboration on community services. Legal Aid Justice Center - Just Children and Immigrant Youth Project referrals for legal assistance with immigration. Lenscrafters - Vouchers for free eye glasses for uninsured students. Literacy Volunteers - Individual EDL tutoring. Loaves & Fishes - Emergency food. MACAA Head Start - Preschool, ID&TR. Mas Labor - H2A Labor specialist and service provider.
A138: Nelson County Food & Nutrition - Automatic free lunch arrangements. Nelson County Health Department - School physicals, referrals. Nelson Lion's Club - Financial assistance with eye glasses. Piedmont Regional Dental Clinic - Reduced/free dental care for children. Piedmont Virginia Community College - College preparedness workshops, enrollment counseling, summer programs. Ready Kids - Pre-school enrichment groups, referrals for counseling and student support groups. Region 10 - Educational support services in school, in home, out-patient counseling and emergency services. Regional Pre-School Initiative - Referrals, collaboration on student needs and progress. Rockfish Valley Community Center Treasure Chest - Clothes closet.
A139: Salvation Army: - Rentals/utilities deposits, household goods, emergency shelter. School Divisions - Referrals, collaboration on student homework help. Sin Barreras - Advocacy group for community information sessions, volunteer tutors, help with student immigration paperwork. Soccer Organization of C'ville/Albemarle (SOCA) - Scholarships, transportation, outreach. St. John's Catholic Church (Waynesboro) - Tutoring, interpretation, financial assistance. St. Mary's Catholic Church - Hygiene kits, backpacks. Staunton/Augusta Free Clinic - Interpretation, medical assistance. Teens Give - Teen intervention, service opportunities. Telemon - ESOL classes, workforce development and training. Thomas Jefferson Health Dept. - Medical services (immunizations, CHIP)
A140: UVA: Intern Program, Health Systems, Teen Health Center, Law Clinic all provide related services. VA Farmworker Legal Assistance; VA Workforce Center; VA Employment Commission - all provide assistance. Waynesboro: Adult Learning Center, City Schools EL, Dept. of Social Services, City Schools Food & Nutrition, Health Dept., and Phoenix Program all provide related services. Women's Initiative - Support groups, individual counseling. Young Lives - New mother support groups/mentoring/baby supplies.
A142: Page 7
E143: School Division: | G143: =$A$16 -> ALBEMARLE COUNTY PUBLIC SCHOOLS | M143: Division Number: | P143: =$I$16 -> 2
A144: D. MEASURABLE OBJECTIVES
A146: 1. | B146: Please address how the Measurable Objectives below will guide the development of the Migrant Education Program.
A147: 2. | B147: Describe the evidence-based research services and activities (programs, models, instructional methods and techniques) that will be implemented to achieve each objective and that will be supported by the requested funds.
A148: Measurable Objective 1: | D148: By the end of the 2018-2019 school year and each year thereafter, the percentage of migrant students attaining “Passing” level or above in reading/language arts on the Virginia Standards of Learning will increase by 2 percent annually.
A151: Evidence-based research services and activities that will be implemented and supported by the requested funds to achieve the objective:
A152: Extended learning time will be provided during and after school hours in collaboration with the instruction provided by the classroom teacher. Individual student needs will be addressed in order to support their meeting the Virginia Standards of Learning. Activities will include homework help, enrichment, "sheltered English" content area instruction, ESOL, bilingual instruction, technology, and study skills. Special emphasis will be placed on the student's next level of reading/language arts SOL exam and SOL specialized preparation materials utilized as needed.
A154: Measurable Objective 2: | D154: By the end of the 2018-2019 school year and each year thereafter, 40 percent of migrant parents who participated in parent activities will report an increased ability to support the reading/language arts achievement of their child.
A157: Evidence-based research services and activities that will be implemented and supported by the requested funds to achieve the objective:
A158: Parents will be encouraged and provided assistance to participate in bilingual Family Literacy programs, ESOL instruction, Parenting classes, Homework help seminars, Literacy Forums, school meetings, teacher conferences, and Migrant Education meetings. Activities will be held in the camps, homes, and other convenient locations at times requested by the parents. Through collaboration with other agencies, a wide variety of opportunities will be made available at various times and places. Parents will be encouraged to participate in the homework help provided at home. Modeling of good techniques will be demonstrated in the same location and under the same circumstances in which the parent would be providing help. Particular emphasis will be placed on how a non-English speaking parent can assist their child with their reading/language arts in English and the appropriate bilingual materials provided as needed.
A160: Page 8
E161: School Division: | G161: =$A$16 -> ALBEMARLE COUNTY PUBLIC SCHOOLS | M161: Division Number: | P161: =$I$16 -> 2
A162: D. MEASURABLE OBJECTIVES (CONTINUED)
A163: Measurable Objective 3: | D163: By the end of the 2018-2019 school year and each year thereafter, 75 percent of teachers who work with migrant students will report that participation in professional development in reading/language arts has improved their delivery of reading/language arts content instruction.
A166: Evidence-based research services and activities that will be implemented and supported by the requested funds to achieve the objective:
A167: All Migrant staff will be encouraged and paid to attend local, state, and national professional development activities. A Migrant Professional Learning Community (DuFour) meets regularly to share training information and effective strategies, and to work together as a team to brainstorm techniques to use in problematic situations. Information will be shared regularly via e-mail to assure that all staff throughout the 20 school system region knows about available training opportunities, current research, and effective teaching strategies. Collaboration with Title III resources in all school systems will be facilitated.
A169: Measurable Objective 4: | D169: By the end of the 2018-2019 school year and each year thereafter, the percentage of migrant students attaining “Passing” level or above in mathematics on the Virginia Standards of Learning will increase by 2 percent annually.
A172: Evidence-based research services and activities that will be implemented and supported by the requested funds to achieve the objective:
A173: Extended learning time will be provided during and after school hours in extensive collaboration with the instruction provided by the classroom teacher. Individual student needs will be addressed in order to support their meeting the Virginia Standards of Learning. Activities will include homework help, enrichment, "sheltered English" content area instruction, ESOL, bilingual instruction, technology, and study skills. Special emphasis will be placed on the student's next level of Math SOL exam and specialized SOL preparation materials utilized as necessary.
A175: Page 9
E176: School Division: | G176: =$A$16 -> ALBEMARLE COUNTY PUBLIC SCHOOLS | M176: Division Number: | P176: =$I$16 -> 2
A177: D. MEASURABLE OBJECTIVES (CONTINUED)
A178: Measurable Objective 5: | D178: By the end of the 2018-2019 school year and each year thereafter, 40 percent of migrant parents who participated in parent activities will report an increased ability to support the mathematics achievement of their child.
A181: Evidence-based research services and activities that will be implemented and supported by the requested funds to achieve the objective:
A182: Parents will be encouraged and provided assistance to participate in bilingual Family Literacy Programs, ESOL instruction, Parenting classes, Homework Help seminars, Literacy Forums, school meetings, teacher conferences, and Migrant Education meetings. Activities will be held in the camps, homes, and other convenient locations at times requested by the parents. Through collaboration with other agencies, a wide variety of opportunities will be made available at various times and places. Parents will be encouraged to participate in the homework help provided at home. Modeling of good techniques will be demonstrated in the same location and under the same circumstances in which the parent would be providing help. Particular emphasis will be placed on how a non-English speaking parent can assist their child with their Math homework and the appropriate bilingual materials provided as needed.
A184: Measurable Objective 6: | D184: By the end of the 2018-2019 school year and each year thereafter, 75 percent of teachers who work with migrant students will report that participation in professional development in mathematics has improved their delivery of mathematics content instruction.
A187: Evidence-based research services and activities that will be implemented and supported by the requested funds to achieve the objective:
A188: All Migrant staff will be encouraged and paid to attend local, state, and national professional development activities. A Migrant Professional Learning Community (DuFour) meets regularly to share training information and effective strategies, and to work together as a team to brainstorm techniques to utilize in problematic situations. Information will be shared regularly via e-mail to assure that all staff throughout the 20 school system region knows about available training opportunities, current research, and effective training strategies. Collaboration with the Math departments in all school systems will be facilitated.
A190: Page 10
E191: School Division: | G191: =$A$16 -> ALBEMARLE COUNTY PUBLIC SCHOOLS | M191: Division Number: | P191: =$I$16 -> 2
A192: D. MEASURABLE OBJECTIVES (CONTINUED)
A193: Measurable Objective 7: | D193: By the end of the 2018-2019 school year and each year thereafter, 75 percent of the students identified as migrant in the graduating class will graduate.
A196: Evidence-based research services and activities that will be implemented and supported by the requested funds to achieve the objective:
A197: Migrant staff will work closely with all middle and high school students, their parents and school counselors to assure credit accrual and that a working plan is in place to assure on-time graduation. Particular emphasis will be placed on dropout prevention, including appropriate academic support, mentoring, vocational training, internships, college visits, college application and scholarship assistance, parent and student information sessions, and summer school tuition, if needed. Staff will meet with students on a bi-annual basis to review their on-time graduation plan, current class completions, grades, goals, and interests. Donated funds will be used to give small gifts, cash and/or scholarships to students when they graduate, to demonstrate to their familiy and friends the importance of this accomplishment.
A199: Measurable Objective 8: | D199: By the end of the 2018-2019 school year and each year thereafter, 25 percent of parents of migrant secondary students who participated in parent activities will report an increased ability to support the education and graduation goals of their child as measured by parent surveys.
A202: Evidence-based research services and activities that will be implemented and supported by the requested funds to achieve the objective:
A203: Migrant staff will work closely with all parents of middle and high school students to make sure they are included, have input, and understand the coursework plans in place for their child to succeed in school and graduate on time. Particular emphasis will be placed on career options, higher education and vocational training opportunities. Transportation, child care, and interpretation will be provided if needed to encourage parents to participate in their child's school parent workshops. Assistance with the FAFSA form will be provided as needed. Parents will be part of the annual review with Migrant staff about the student's on-time graduation plans, current class completions, grades, goals, and interests.
A205: Page 11
E206: School Division: | G206: =$A$16 -> ALBEMARLE COUNTY PUBLIC SCHOOLS | M206: Division Number: | P206: =$I$16 -> 2
A207: D. MEASURABLE OBJECTIVES (CONTINUED)
A208: Measurable Objective 9: | D208: By the end of the 2018-2019 school year and each year thereafter, MEP staff, including, but not limited to teachers and paraprofessionals, will participate in a minimum of two professional development sessions annually related to improving migrant student graduation rates.
A211: Evidence-based research services and activities that will be implemented and supported by the requested funds to achieve the objective:
A212: All Migrant staff will be encouraged and paid to attend local, state, and national professional development activities, especially those addressing dropout prevention. The Migrant Professional Learning Community (DuFour) will address dropout prevention on a regular basis and share training information, effective strategies, and work together as a team to brainstorm techniques to utilize in problematic situations. Information will be shared regularly via e-mail to assure that all staff throughout the 20 school system region knows about available training opportunities, current research, and effective dropout prevention strategies.
A213: Measurable Objective 10: | D213: By the end of the 2018-2019 school year and each year thereafter, the percentage of migrant students entering preschool who have acquired school readiness skills will increase by 2 percent as measured by the PALS-K or Brigance assessments.
A216: Evidence-based research services and activities that will be implemented and supported by the requested funds to achieve the objective:
A217: Preschool children and their parents will be provided preschool materials and instruction for their utilization in the home. Volunteers and tutors work with the preschool children and their parents, modeling effective interactions. Migrant staff ensure that where possible, preschool children are enrolled in quality preschool programs in their communities. Parents are provided detailed information about activities such as library story hours and other community events.
A219: Page 12
E220: School Division: | G220: =$A$16 -> ALBEMARLE COUNTY PUBLIC SCHOOLS | M220: Division Number: | P220: =$I$16 -> 2
A221: D. MEASURABLE OBJECTIVES (CONTINUED)
A222: Measurable Objective 11: | D222: By the end of the 2018-2019 school year and each year thereafter, after participating in parent involvement activities, 10 percent of parents of migrant students entering preschool will report an increased awareness of community resources to help them support the school readiness of their children as measured by parent surveys.
A225: Evidence-based research services and activities that will be implemented and supported by the requested funds to achieve the objective:
A226: Parents will be provided pre-school activities, information and training to work effectively in everyday activities with their pre-school children in basic literacy skills. Collaboration with other agencies will be encouraged and facilitated.
A227: Measurable Objective 12: | D227: By the end of the 2018-2019 school year and each year thereafter, 25 percent of MEP staff will report an increase in their skills to help support the school readiness of migrant students entering preschool as measured by staff surveys.
A230: Evidence-based research services and activities that will be implemented and supported by the requested funds to achieve the objective:
A231: MEP staff will be encouraged to participate in professional development to support school readiness skills.
A233: Page 13
E234: School Division: | G234: =$A$16 -> ALBEMARLE COUNTY PUBLIC SCHOOLS | M234: Division Number: | P234: =$I$16 -> 2
A235: D. MEASURABLE OBJECTIVES (CONTINUED)
A236: Measurable Objective 13: | D236: By the end of the 2018-2019 school year and each year thereafter, 100 percent of dropout students will receive information about educational services specific to their situation.
A239: Evidence-based research services and activities that will be implemented and supported by the requested funds to achieve the objective:
A240: All dropout students will be provided with written and oral information about educational services available to them and connected to other agencies that can provide support educational services.
A242: Page 14
E243: School Division: | G243: =$A$16 -> ALBEMARLE COUNTY PUBLIC SCHOOLS | M243: Division Number: | P243: =$I$16 -> 2
A244: E. BUDGET SUMMARY
A245: TITLE I, Part C
A246: Do the Budget Summary totals equal the Detailed Budget? | J246: =IF(SUM(G281)=SUM(N305,N320,N337,N352,N367,N385,N402,N425,N444,N461),"Yes","No -please review your entries.") -> Yes
A247: OBJECT
A248: CODE | B248: EXPENDITURE | G248: AMOUNT BUDGETED | L248: FTEs
A250: 1000 - Personal Services | B250: Administration | G250: 33951
B251: Teachers | G251: 15500
B252: Paraprofessionals
B253: Other | G253: 45853
B254: Total Personal Services | G254: =SUM(G250:K253) -> 95304
A255: 2000 - Employee Benefits | B255: Fixed Charges | G255: 33721
B256: (Administrative and Instruction)
B257: Total Employee Benefits | G257: =SUM(G255:K256) -> 33721
A258: 3000 - Purchased/ Contracted Services | B258: Supportive Services (Med., Dental)
B259: Evaluation Services
B260: Professional Development | G260: 2500
B261: Other | G261: 300
B262: Total Purchased/Contracted Services | G262: =SUM(G258:K261) -> 2800
A263: 4000 - Internal Services | B263: Pupil Transportation
B264: Food Services
B265: Other | G265: 200
B266: Total Internal Services | G266: =SUM(G263:K265) -> 200
A267: 5000 - Other Charges | B267: Travel (Staff/Administrative) | G267: 6500
B268: Maintenance of Plant
B269: Operation of Plant
B270: Indirect Cost
B271: Other | G271: 1050
... 160 more rows

Sheet Prefills (hidden)
A1: Name | B1: Code | I1: INNOVATIVE ASSISTANCE PROGRAM AREAS | U1: Yes | W1: Yes | Z1: Title I A | AD1: Title I C | AH1: Title ID | AL1: Title IIA | AP1: Title IID | AT1: Title III | AX1: Title IV | BB1: Title V | BF1: Title VI
A2: ACCOMACK COUNTY PUBLIC SCHOOLS | B2: 1 | U2: No | W2: No | Z2: Payee | AA2: ProjectGroupID | AB2: CONoSOLIDATED_APP_FLAG | AC2: Allocation | AD2: Payee | AE2: ProjectGroupID | AF2: CONoSOLIDATED_APP_FLAG | AG2: Allocation | AH2: Payee | AI2: ProjectGroupID | AJ2: CONoSOLIDATED_APP_FLAG | AK2: Allocation | AL2: Payee | AM2: ProjectGroupID | AN2: CONoSOLIDATED_APP_FLAG | AO2: Allocation | AP2: Payee | AQ2: ProjectGroupID | AR2: CONoSOLIDATED_APP_FLAG | AS2: Allocation | AT2: Payee | AU2: ProjectGroupID | AV2: CONoSOLIDATED_APP_FLAG | AW2: Allocation | AX2: Payee | AY2: ProjectGroupID | AZ2: CONoSOLIDATED_APP_FLAG | BA2: Allocation | BB2: Payee | BC2: ProjectGroupID | BD2: CONoSOLIDATED_APP_FLAG | BE2: Allocation | BF2: Payee | BG2: ProjectGroupID | BH2: CONoSOLIDATED_APP_FLAG | BI2: Allocation
A3: ALBEMARLE COUNTY PUBLIC SCHOOLS | B3: 2 | W3: Shared Services Only | Z3: 1 | AA3: 1 | AB3: Yes | AC3: 1786364.85 | AD3: 1 | AE3: 2 | AF3: Yes | AG3: 232645 | AH3: 1 | AI3: 3 | AJ3: Yes | AL3: 1 | AM3: 4 | AN3: Yes | AO3: 291765.79 | AT3: 1 | AU3: 6 | AV3: Yes | AW3: 97040.22 | BF3: 1 | BG3: 9 | BH3: Yes | BI3: 94384.84
A4: ALEXANDRIA CITY PUBLIC SCHOOLS | B4: 101 | H4: 1. | I4: 1. Recruiting, training, and hiring highly qualified teachers to reduce class size | Z4: 2 | AA4: 1 | AB4: No | AC4: 1442772.07 | AD4: 2 | AE4: 2 | AF4: No | AG4: 142116.01 | AH4: 2 | AI4: 3 | AJ4: No | AL4: 2 | AM4: 4 | AN4: No | AO4: 316179.34 | AT4: 2 | AU4: 6 | AV4: No | AW4: 103428.7 | BF4: 2 | BG4: 9 | BH4: No
A5: ALLEGHANY COUNTY PUBLIC SCHOOLS | B5: 3 | H5: 2. | I5: 2. Technology activities, including professional development | Z5: 3 | AA5: 1 | AB5: Yes | AC5: 483805.33 | AD5: 3 | AE5: 2 | AF5: Yes | AH5: 3 | AI5: 3 | AJ5: Yes | AK5: 42166.04 | AL5: 3 | AM5: 4 | AN5: Yes | AO5: 108836.84 | AT5: 3 | AU5: 6 | AV5: Yes | AW5: 2476.63 | BF5: 3 | BG5: 9 | BH5: Yes
A6: AMELIA COUNTY PUBLIC SCHOOLS | B6: 4 | H6: 3a. | I6: 3a. Development or acquisition and use of: computer software and hardware | W6: Yes | Z6: 4 | AA6: 1 | AB6: Yes | AC6: 346908.37 | AD6: 4 | AE6: 2 | AF6: Yes | AH6: 4 | AI6: 3 | AJ6: Yes | AL6: 4 | AM6: 4 | AN6: Yes | AO6: 66723.36 | AT6: 4 | AU6: 6 | AV6: Yes | AW6: 4599.45 | BF6: 4 | BG6: 9 | BH6: Yes
A7: AMHERST COUNTY PUBLIC SCHOOLS | B7: 5 | H7: 3b. | I7: 3b. Development or acquisition and use of: instructional/reference materials and academic assessments | W7: No | Z7: 5 | AA7: 1 | AB7: No | AC7: 885018.8 | AD7: 5 | AE7: 2 | AF7: No | AH7: 5 | AI7: 3 | AJ7: No | AL7: 5 | AM7: 4 | AN7: No | AO7: 162116.93 | AT7: 5 | AU7: 6 | AV7: No | AW7: 943.48 | BF7: 5 | BG7: 9 | BH7: No
A8: APPOMATTOX COUNTY PUBLIC SCHOOLS | B8: 6 | H8: 3c. | I8: 3c. Development or acquisition and use of: library/media services and materials | Z8: 6 | AA8: 1 | AB8: No | AC8: 567155.55 | AD8: 6 | AE8: 2 | AF8: No | AH8: 6 | AI8: 3 | AJ8: No | AL8: 6 | AM8: 4 | AN8: No | AO8: 90073.64 | AT8: 6 | AU8: 6 | AV8: No | AW8: 353.8 | BF8: 6 | BG8: 9 | BH8: No | BI8: 42396.28
A9: ARLINGTON COUNTY PUBLIC SCHOOLS | B9: 7 | H9: 4. | I9: 4. Educational reform projects, including magnet schools | Z9: 7 | AA9: 1 | AB9: Yes | AC9: 1938429.68 | AD9: 7 | AE9: 2 | AF9: Yes | AH9: 7 | AI9: 3 | AJ9: Yes | AL9: 7 | AM9: 4 | AN9: Yes | AO9: 578776.99 | AT9: 7 | AU9: 6 | AV9: Yes | AW9: 588170.92 | BF9: 7 | BG9: 9 | BH9: Yes
A10: AUGUSTA COUNTY PUBLIC SCHOOLS | B10: 8 | H10: 5. | I10: 5. Programs to improve the academic achievement of educationally disadvantaged elementary and secondary students, including dropout prevention | Z10: 8 | AA10: 1 | AB10: No | AC10: 1232008.89 | AD10: 8 | AE10: 2 | AF10: No | AH10: 8 | AI10: 3 | AJ10: No | AL10: 8 | AM10: 4 | AN10: No | AO10: 273200.47 | AT10: 8 | AU10: 6 | AV10: No | AW10: 20756.5 | BF10: 8 | BG10: 9 | BH10: No
A11: BATH COUNTY PUBLIC SCHOOLS | B11: 9 | H11: 6. | I11: 6. Programs to improve the literacy skills of adults, including adult education and family literacy programs | Z11: 9 | AA11: 1 | AB11: No | AC11: 71070.41 | AD11: 9 | AE11: 2 | AF11: No | AH11: 9 | AI11: 3 | AJ11: No | AL11: 9 | AM11: 4 | AN11: No | AO11: 23069.45 | AT11: 9 | AU11: 6 | AV11: No | AW11: 1297.28 | BF11: 9 | BG11: 9 | BH11: No
A12: BEDFORD CITY PUBLIC SCHOOLS | B12: 140 | H12: 7. | I12: 7. Programs for gifted and talented children | Z12: 10 | AA12: 1 | AB12: No | AC12: 1145914.03 | AD12: 10 | AE12: 2 | AF12: No | AH12: 10 | AI12: 3 | AJ12: No | AL12: 10 | AM12: 4 | AN12: No | AO12: 289537.68 | AT12: 10 | AU12: 6 | AV12: No | AW12: 14623.9 | BF12: 10 | BG12: 9 | BH12: No
A13: BEDFORD COUNTY PUBLIC SCHOOLS | B13: 10 | H13: 8. | I13: 8. Planning, design, and initial implementation of charter schools under Title V, Part B | Z13: 11 | AA13: 1 | AB13: Yes | AC13: 145848.95 | AD13: 11 | AE13: 2 | AF13: Yes | AH13: 11 | AI13: 3 | AJ13: Yes | AL13: 11 | AM13: 4 | AN13: Yes | AO13: 29073.03 | AT13: 11 | AU13: 6 | AV13: Yes | AW13: 0 | BF13: 11 | BG13: 9 | BH13: Yes
A14: BLAND COUNTY PUBLIC SCHOOLS | B14: 11 | H14: 9. | I14: 9. School improvement programs or activities under Sections 1116 and 1117 of Title I, Part A | Z14: 12 | AA14: 1 | AB14: No | AC14: 399151.25 | AD14: 12 | AE14: 2 | AF14: No | AH14: 12 | AI14: 3 | AJ14: No | AL14: 12 | AM14: 4 | AN14: No | AO14: 102008.92 | AT14: 12 | AU14: 6 | AV14: No | AW14: 5795.58 | BF14: 12 | BG14: 9 | BH14: No
A15: BOTETOURT COUNTY PUBLIC SCHOOLS | B15: 12 | H15: 10. | I15: 10. Community service programs | Z15: 13 | AA15: 1 | AB15: Yes | AC15: 675744.96 | AD15: 13 | AE15: 2 | AF15: Yes | AH15: 13 | AI15: 3 | AJ15: Yes | AL15: 13 | AM15: 4 | AN15: Yes | AO15: 141614.94 | AT15: 13 | AU15: 6 | AV15: Yes | AW15: 3773.91 | BF15: 13 | BG15: 9 | BH15: Yes | BI15: 35353.84
A16: BRISTOL CITY PUBLIC SCHOOLS | B16: 102 | H16: 11. | I16: 11. Consumer, economic, and personal finance education | Z16: 14 | AA16: 1 | AB16: Yes | AC16: 1153736.24 | AD16: 14 | AE16: 2 | AF16: Yes | AH16: 14 | AI16: 3 | AJ16: Yes | AL16: 14 | AM16: 4 | AN16: Yes | AO16: 288212.45 | AT16: 14 | AU16: 6 | AV16: Yes | AW16: 117.93 | BF16: 14 | BG16: 9 | BH16: Yes | BI16: 59901.19
A17: BRUNSWICK COUNTY PUBLIC SCHOOLS | B17: 13 | H17: 12. | I17: 12. Public school choice | W17: 1000 | Z17: 15 | AA17: 1 | AB17: Yes | AC17: 655870.69 | AD17: 15 | AE17: 2 | AF17: Yes | AH17: 15 | AI17: 3 | AJ17: Yes | AL17: 15 | AM17: 4 | AN17: Yes | AO17: 117055.64 | AT17: 15 | AU17: 6 | AV17: Yes | AW17: 117.93 | BF17: 15 | BG17: 9 | BH17: Yes | BI17: 38227.48
A18: BUCHANAN COUNTY PUBLIC SCHOOLS | B18: 14 | H18: 13. | I18: 13. Programs to hire and support school nurses | W18: 2000 | Z18: 16 | AA18: 1 | AB18: No | AC18: 1545273.89 | AD18: 16 | AE18: 2 | AF18: No | AH18: 16 | AI18: 3 | AJ18: No | AL18: 16 | AM18: 4 | AN18: No | AO18: 286448.53 | AT18: 16 | AU18: 6 | AV18: No | AW18: 15921.18 | BF18: 16 | BG18: 9 | BH18: No
A19: BUCKINGHAM COUNTY PUBLIC SCHOOLS | B19: 15 | H19: 14. | I19: 14. School-based mental health services | W19: 3000 | Z19: 17 | AA19: 1 | AB19: Yes | AC19: 814710.69 | AD19: 17 | AE19: 2 | AF19: Yes | AH19: 17 | AI19: 3 | AJ19: Yes | AL19: 17 | AM19: 4 | AN19: Yes | AO19: 148001.87 | AT19: 17 | AU19: 6 | AV19: Yes | AW19: 6722.28 | BF19: 17 | BG19: 9 | BH19: Yes
A20: BUENA VISTA CITY PUBLIC SCHOOLS | B20: 103 | H20: 15. | I20: 15. Alternative educational programs | W20: 4000 | Z20: 18 | AA20: 1 | AB20: No | AC20: 1092840.39 | AD20: 18 | AE20: 2 | AF20: No | AG20: 34790.82 | AH20: 18 | AI20: 3 | AJ20: No | AL20: 18 | AM20: 4 | AN20: No | AO20: 175016.18 | AT20: 18 | AU20: 6 | AV20: No | AW20: 12501.07 | BF20: 18 | BG20: 9 | BH20: No | BI20: 81089.21
A21: CAMPBELL COUNTY PUBLIC SCHOOLS | B21: 16 | H21: 16. | I21: 16. Prekindergarten programs | W21: 5000 | Z21: 19 | AA21: 1 | AB21: Yes | AC21: 153655.88 | AD21: 19 | AE21: 2 | AF21: Yes | AH21: 19 | AI21: 3 | AJ21: Yes | AL21: 19 | AM21: 4 | AN21: Yes | AO21: 41615.81 | AT21: 19 | AU21: 6 | AV21: Yes | AW21: 2122.82 | BF21: 19 | BG21: 9 | BH21: Yes
A22: CAROLINE COUNTY PUBLIC SCHOOLS | B22: 17 | H22: 17. | I22: 17. Academic intervention programs jointly operated with community-based organizations | W22: 6000 | Z22: 20 | AA22: 1 | AB22: Yes | AC22: 563153.39 | AD22: 20 | AE22: 2 | AF22: Yes | AH22: 20 | AI22: 3 | AJ22: Yes | AL22: 20 | AM22: 4 | AN22: Yes | AO22: 100384.89 | AT22: 20 | AU22: 6 | AV22: Yes | AW22: 1179.35 | BF22: 20 | BG22: 9 | BH22: Yes | BI22: 37438.24
A23: CARROLL COUNTY PUBLIC SCHOOLS | B23: 18 | H23: 18. | I23: 18. CPR training | W23: 8000 | Z23: 21 | AA23: 1 | AB23: No | AC23: 5714631.13 | AD23: 21 | AE23: 2 | AF23: No | AH23: 21 | AI23: 3 | AJ23: No | AL23: 21 | AM23: 4 | AN23: No | AO23: 1115942.77 | AT23: 21 | AU23: 6 | AV23: No | AW23: 380345.9 | BF23: 21 | BG23: 9 | BH23: No
A24: CHARLES CITY COUNTY PUBLIC SCHOOLS | B24: 19 | H24: 19. | I24: 19. Smaller learning communities | Z24: 22 | AA24: 1 | AB24: No | AC24: 176849.62 | AD24: 22 | AE24: 2 | AF24: No | AH24: 22 | AI24: 3 | AJ24: No | AL24: 22 | AM24: 4 | AN24: No | AO24: 55133.09 | AT24: 22 | AU24: 6 | AV24: No | AW24: 1651.09 | BF24: 22 | BG24: 9 | BH24: No
A25: CHARLOTTE COUNTY PUBLIC SCHOOLS | B25: 20 | H25: 20. | I25: 20. Activities that encourage and expand improvements throughout the LEA area that are designed to advance student academic achievement | Z25: 23 | AA25: 1 | AB25: Yes | AC25: 164891.08 | AD25: 23 | AE25: 2 | AF25: Yes | AH25: 23 | AI25: 3 | AJ25: Yes | AL25: 23 | AM25: 4 | AN25: Yes | AO25: 23564.46 | AT25: 23 | AU25: 6 | AV25: Yes | AW25: 707.61 | BF25: 23 | BG25: 9 | BH25: Yes
A26: CHARLOTTESVILLE CITY PUBLIC SCHOOLS | B26: 104 | H26: 21. | I26: 21. Parental and community involvement | Z26: 24 | AA26: 1 | AB26: No | AC26: 1396949.73 | AD26: 24 | AE26: 2 | AF26: No | AH26: 24 | AI26: 3 | AJ26: No | AK26: 75055.02 | AL26: 24 | AM26: 4 | AN26: No | AO26: 201224.25 | AT26: 24 | AU26: 6 | AV26: No | AW26: 54485.81 | BF26: 24 | BG26: 9 | BH26: No
A27: CHESAPEAKE CITY PUBLIC SCHOOLS | B27: 136 | H27: 22. | I27: 22. Activities that expand learning through best-practice models | Z27: 25 | AA27: 1 | AB27: Yes | AC27: 395240.36 | AD27: 25 | AE27: 2 | AF27: Yes | AH27: 25 | AI27: 3 | AJ27: Yes | AL27: 25 | AM27: 4 | AN27: Yes | AO27: 68531.73 | AT27: 25 | AU27: 6 | AV27: Yes | AW27: 3420.11 | BF27: 25 | BG27: 9 | BH27: Yes | BI27: 24871.14
A28: CHESTERFIELD COUNTY PUBLIC SCHOOLS | B28: 21 | H28: 23. | I28: 23. Same-gender schools and classrooms (consistent with applicable law)** | Z28: 26 | AA28: 1 | AB28: No | AC28: 667387.98 | AD28: 26 | AE28: 2 | AF28: No | AH28: 26 | AI28: 3 | AJ28: No | AL28: 26 | AM28: 4 | AN28: No | AO28: 190725.7 | AT28: 26 | AU28: 6 | AV28: No | AW28: 0 | BF28: 26 | BG28: 9 | BH28: No | BI28: 42396.28
A29: CLARKE COUNTY PUBLIC SCHOOLS | B29: 22 | H29: 24. | I29: 24. Service learning activities | Z29: 27 | AA29: 1 | AB29: Yes | AC29: 623179.69 | AD29: 27 | AE29: 2 | AF29: Yes | AH29: 27 | AI29: 3 | AJ29: Yes | AL29: 27 | AM29: 4 | AN29: Yes | AO29: 150710.04 | AT29: 27 | AU29: 6 | AV29: Yes | AW29: 7901.62 | BF29: 27 | BG29: 9 | BH29: Yes
A30: CLIFTON FORGE CITY | B30: 105 | H30: 25. | I30: 25. School safety programs | Z30: 28 | AA30: 1 | AB30: No | AC30: 445025.3 | AD30: 28 | AE30: 2 | AF30: No | AH30: 28 | AI30: 3 | AJ30: No | AL30: 28 | AM30: 4 | AN30: No | AO30: 64231.8 | AT30: 28 | AU30: 6 | AV30: No | AW30: 4127.71 | BF30: 28 | BG30: 9 | BH30: No | BI30: 29444.67
A31: COLONIAL BEACH TOWN PUBLIC SCHOOLS | B31: 202 | H31: 26. | I31: 26. Programs that use research-based cognitive and perceptual development approaches | Z31: 29 | AA31: 1 | AB31: No | AC31: 19058305.99 | AD31: 29 | AE31: 2 | AF31: No | AH31: 29 | AI31: 3 | AJ31: No | AL31: 29 | AM31: 4 | AN31: No | AO31: 3103436.61 | AT31: 29 | AU31: 6 | AV31: No | AW31: 4500516.19 | BF31: 29 | BG31: 9 | BH31: No
A32: COLONIAL HEIGHTS CITY PUBLIC SCHOOLS | B32: 106 | H32: 27. | I32: 27. Supplemental educational services as defined in Section 1116(e) of Title I, Part A | Z32: 30 | AA32: 1 | AB32: Yes | AC32: 750182.79 | AD32: 30 | AE32: 2 | AF32: Yes | AH32: 30 | AI32: 3 | AJ32: Yes | AL32: 30 | AM32: 4 | AN32: Yes | AO32: 231857.94 | AT32: 30 | AU32: 6 | AV32: Yes | AW32: 58023.85 | BF32: 30 | BG32: 9 | BH32: Yes
A33: COVINGTON CITY PUBLIC SCHOOLS | B33: 107 | I33: Program Administration | Z33: 31 | AA33: 1 | AB33: Yes | AC33: 432347.3 | AD33: 31 | AE33: 2 | AF33: Yes | AH33: 31 | AI33: 3 | AJ33: Yes | AL33: 31 | AM33: 4 | AN33: Yes | AO33: 78309.01 | AT33: 31 | AU33: 6 | AV33: Yes | AW33: 6014.67 | BF33: 31 | BG33: 9 | BH33: Yes
A34: CRAIG COUNTY PUBLIC SCHOOLS | B34: 23 | I34: Indirect Costs (not to exceed approved rate) | Z34: 32 | AA34: 1 | AB34: Yes | AC34: 334692.04 | AD34: 32 | AE34: 2 | AF34: Yes | AH34: 32 | AI34: 3 | AJ34: Yes | AL34: 32 | AM34: 4 | AN34: Yes | AO34: 91767.55 | AT34: 32 | AU34: 6 | AV34: Yes | AW34: 6132.6 | BF34: 32 | BG34: 9 | BH34: Yes
A35: CULPEPER COUNTY PUBLIC SCHOOLS | B35: 24 | Z35: 33 | AA35: 1 | AB35: Yes | AC35: 1759978.81 | AD35: 33 | AE35: 2 | AF35: Yes | AH35: 33 | AI35: 3 | AJ35: Yes | AL35: 33 | AM35: 4 | AN35: Yes | AO35: 259741.73 | AT35: 33 | AU35: 6 | AV35: Yes | AW35: 11085.86 | BF35: 33 | BG35: 9 | BH35: Yes
A36: CUMBERLAND COUNTY PUBLIC SCHOOLS | B36: 25 | Z36: 34 | AA36: 1 | AB36: No | AC36: 1466937.97 | AD36: 34 | AE36: 2 | AF36: No | AH36: 34 | AI36: 3 | AJ36: No | AK36: 65468.33 | AL36: 34 | AM36: 4 | AN36: No | AO36: 267006.27 | AT36: 34 | AU36: 6 | AV36: No | AW36: 64274.39 | BF36: 34 | BG36: 9 | BH36: No
A37: DANVILLE CITY PUBLIC SCHOOLS | B37: 108 | Z37: 35 | AA37: 1 | AB37: No | AC37: 445027.2 | AD37: 35 | AE37: 2 | AF37: No | AH37: 35 | AI37: 3 | AJ37: No | AL37: 35 | AM37: 4 | AN37: No | AO37: 95220.4 | AT37: 35 | AU37: 6 | AV37: No | AW37: 471.74 | BF37: 35 | BG37: 9 | BH37: No
A38: DICKENSON COUNTY PUBLIC SCHOOLS | B38: 26 | Z38: 36 | AA38: 1 | AB38: Yes | AC38: 667366.41 | AD38: 36 | AE38: 2 | AF38: Yes | AH38: 36 | AI38: 3 | AJ38: Yes | AL38: 36 | AM38: 4 | AN38: Yes | AO38: 205487.34 | AT38: 36 | AU38: 6 | AV38: Yes | AW38: 5626.14 | BF38: 36 | BG38: 9 | BH38: Yes
A39: DINWIDDIE COUNTY PUBLIC SCHOOLS | B39: 27 | Z39: 37 | AA39: 1 | AB39: No | AC39: 259489.63 | AD39: 37 | AE39: 2 | AF39: No | AH39: 37 | AI39: 3 | AJ39: No | AK39: 75455.02 | AL39: 37 | AM39: 4 | AN39: No | AO39: 57140.37 | AT39: 37 | AU39: 6 | AV39: No | AW39: 4481.52 | BF39: 37 | BG39: 9 | BH39: No
A40: EMPORIA CITY PUBLIC SCHOOLS | B40: 138 | Z40: 38 | AA40: 1 | AB40: No | AC40: 579299.45 | AD40: 38 | AE40: 2 | AF40: No | AH40: 38 | AI40: 3 | AJ40: No | AL40: 38 | AM40: 4 | AN40: No | AO40: 105453.79 | AT40: 38 | AU40: 6 | AV40: No | AW40: 2948.37 | BF40: 38 | BG40: 9 | BH40: No | BI40: 34261.05
A41: ESSEX COUNTY PUBLIC SCHOOLS | B41: 28 | Z41: 39 | AA41: 1 | AB41: Yes | AC41: 347914.44 | AD41: 39 | AE41: 2 | AF41: Yes | AH41: 39 | AI41: 3 | AJ41: Yes | AL41: 39 | AM41: 4 | AN41: Yes | AO41: 92085.32 | AT41: 39 | AU41: 6 | AV41: Yes | AW41: 10732.05 | BF41: 39 | BG41: 9 | BH41: Yes
A42: FAIRFAX CITY PUBLIC SCHOOLS | B42: 134 | Z42: 40 | AA42: 1 | AB42: Yes | AC42: 394688.88 | AD42: 40 | AE42: 2 | AF42: Yes | AH42: 40 | AI42: 3 | AJ42: Yes | AL42: 40 | AM42: 4 | AN42: Yes | AO42: 143292.89 | AT42: 40 | AU42: 6 | AV42: Yes | AW42: 11422.52 | BF42: 40 | BG42: 9 | BH42: Yes | BI42: 45674.66
A43: FAIRFAX COUNTY PUBLIC SCHOOLS | B43: 29 | Z43: 41 | AA43: 1 | AB43: Yes | AC43: 1688629.4 | AD43: 41 | AE43: 2 | AF43: Yes | AH43: 41 | AI43: 3 | AJ43: Yes | AL43: 41 | AM43: 4 | AN43: Yes | AO43: 266692.28 | AT43: 41 | AU43: 6 | AV43: Yes | AW43: 4363.58 | BF43: 41 | BG43: 9 | BH43: Yes | BI43: 101326.1
A44: FALLS CHURCH CITY PUBLIC SCHOOLS | B44: 109 | Z44: 42 | AA44: 1 | AB44: No | AC44: 1040367.33 | AD44: 42 | AE44: 2 | AF44: No | AH44: 42 | AI44: 3 | AJ44: No | AL44: 42 | AM44: 4 | AN44: No | AO44: 281871.45 | AT44: 42 | AU44: 6 | AV44: No | AW44: 18397.81 | BF44: 42 | BG44: 9 | BH44: No
A45: FAUQUIER COUNTY PUBLIC SCHOOLS | B45: 30 | Z45: 43 | AA45: 1 | AB45: No | AC45: 7349539.64 | AD45: 43 | AE45: 2 | AF45: No | AH45: 43 | AI45: 3 | AJ45: No | AL45: 43 | AM45: 4 | AN45: No | AO45: 1060488.37 | AT45: 43 | AU45: 6 | AV45: No | AW45: 337729.78 | BF45: 43 | BG45: 9 | BH45: No
A46: FLOYD COUNTY PUBLIC SCHOOLS | B46: 31 | Z46: 44 | AA46: 1 | AB46: No | AC46: 2365483.95 | AD46: 44 | AE46: 2 | AF46: No | AH46: 44 | AI46: 3 | AJ46: No | AL46: 44 | AM46: 4 | AN46: No | AO46: 344135.24 | AT46: 44 | AU46: 6 | AV46: No | AW46: 46820.06 | BF46: 44 | BG46: 9 | BH46: No | BI46: 136862.07
A47: FLUVANNA COUNTY PUBLIC SCHOOLS | B47: 32 | Z47: 45 | AA47: 1 | AB47: No | AC47: 50679.88 | AD47: 45 | AE47: 2 | AF47: No | AH47: 45 | AI47: 3 | AJ47: No | AL47: 45 | AM47: 4 | AN47: No | AO47: 14288.79 | AT47: 45 | AU47: 6 | AV47: No | AW47: 0 | BF47: 45 | BG47: 9 | BH47: No
A48: FRANKLIN CITY PUBLIC SCHOOLS | B48: 135 | Z48: 46 | AA48: 1 | AB48: No | AC48: 583674.4 | AD48: 46 | AE48: 2 | AF48: No | AH48: 46 | AI48: 3 | AJ48: No | AL48: 46 | AM48: 4 | AN48: No | AO48: 172646.82 | AT48: 46 | AU48: 6 | AV48: No | AW48: 2830.43 | BF48: 46 | BG48: 9 | BH48: No
A49: FRANKLIN COUNTY PUBLIC SCHOOLS | B49: 33 | Z49: 47 | AA49: 1 | AC49: 957773.93 | AD49: 47 | AE49: 2 | AH49: 47 | AI49: 3 | AL49: 47 | AM49: 4 | AT49: 47 | AU49: 6 | BF49: 47 | BG49: 9
A50: FREDERICK COUNTY PUBLIC SCHOOLS | B50: 34 | Z50: 48 | AA50: 1 | AB50: No | AC50: 364442.44 | AD50: 48 | AE50: 2 | AF50: No | AH50: 48 | AI50: 3 | AJ50: No | AL50: 48 | AM50: 4 | AN50: No | AO50: 91432.01 | AT50: 48 | AU50: 6 | AV50: No | AW50: 2830.43 | BF50: 48 | BG50: 9 | BH50: No
A51: FREDERICKSBURG CITY PUBLIC SCHOOLS | B51: 110 | Z51: 49 | AA51: 1 | AB51: Yes | AC51: 187432.04 | AD51: 49 | AE51: 2 | AF51: Yes | AH51: 49 | AI51: 3 | AJ51: Yes | AL51: 49 | AM51: 4 | AN51: Yes | AO51: 49615.09 | AT51: 49 | AU51: 6 | AV51: Yes | AW51: 1533.15 | BF51: 49 | BG51: 9 | BH51: Yes
A52: GALAX CITY PUBLIC SCHOOLS | B52: 111 | Z52: 50 | AA52: 1 | AB52: Yes | AC52: 207204.21 | AD52: 50 | AE52: 2 | AF52: Yes | AH52: 50 | AI52: 3 | AJ52: Yes | AL52: 50 | AM52: 4 | AN52: Yes | AO52: 53769.64 | AT52: 50 | AU52: 6 | AV52: Yes | AW52: 1651.09 | BF52: 50 | BG52: 9 | BH52: Yes
A53: GILES COUNTY PUBLIC SCHOOLS | B53: 35 | Z53: 51 | AA53: 1 | AB53: Yes | AC53: 359206.96 | AD53: 51 | AE53: 2 | AF53: Yes | AH53: 51 | AI53: 3 | AJ53: Yes | AL53: 51 | AM53: 4 | AN53: Yes | AO53: 77011.74 | AT53: 51 | AU53: 6 | AV53: Yes | AW53: 825.54 | BF53: 51 | BG53: 9 | BH53: Yes | BI53: 23636.68
A54: GLOUCESTER COUNTY PUBLIC SCHOOLS | B54: 36 | Z54: 52 | AA54: 1 | AB54: Yes | AC54: 1452119.85 | AD54: 52 | AE54: 2 | AF54: Yes | AH54: 52 | AI54: 3 | AJ54: Yes | AL54: 52 | AM54: 4 | AN54: Yes | AO54: 285434.21 | AT54: 52 | AU54: 6 | AV54: Yes | AW54: 117.93 | BF54: 52 | BG54: 9 | BH54: Yes | BI54: 59860.71
A55: GOOCHLAND COUNTY PUBLIC SCHOOLS | B55: 37 | Z55: 53 | AA55: 1 | AB55: Yes | AC55: 1478880.05 | AD55: 53 | AE55: 2 | AF55: Yes | AH55: 53 | AI55: 3 | AJ55: Yes | AL55: 53 | AM55: 4 | AN55: Yes | AO55: 506325.26 | AT55: 53 | AU55: 6 | AV55: Yes | AW55: 686851.48 | BF55: 53 | BG55: 9 | BH55: Yes
A56: GRAYSON COUNTY PUBLIC SCHOOLS | B56: 38 | Z56: 54 | AA56: 1 | AB56: No | AC56: 802748.47 | AD56: 54 | AE56: 2 | AF56: No | AH56: 54 | AI56: 3 | AJ56: No | AL56: 54 | AM56: 4 | AN56: No | AO56: 157619.98 | AT56: 54 | AU56: 6 | AV56: No | AW56: 6132.6 | BF56: 54 | BG56: 9 | BH56: No
A57: GREENE COUNTY PUBLIC SCHOOLS | B57: 39 | Z57: 55 | AA57: 1 | AB57: Yes | AC57: 575986.28 | AD57: 55 | AE57: 2 | AF57: Yes | AH57: 55 | AI57: 3 | AJ57: Yes | AL57: 55 | AM57: 4 | AN57: Yes | AO57: 101958.14 | AT57: 55 | AU57: 6 | AV57: Yes | AW57: 8373.36 | BF57: 55 | BG57: 9 | BH57: Yes | BI57: 28716.14
A58: GREENSVILLE COUNTY PUBLIC SCHOOLS | B58: 40 | Z58: 56 | AA58: 1 | AB58: No | AC58: 368226.52 | AD58: 56 | AE58: 2 | AF58: No | AH58: 56 | AI58: 3 | AJ58: No | AL58: 56 | AM58: 4 | AN58: No | AO58: 78564.81 | AT58: 56 | AU58: 6 | AV58: No | AW58: 471.74 | BF58: 56 | BG58: 9 | BH58: No
A59: HALIFAX COUNTY PUBLIC SCHOOLS | B59: 41 | Z59: 57 | AA59: 1 | AB59: Yes | AC59: 184826.4 | AD59: 57 | AE59: 2 | AF59: Yes | AH59: 57 | AI59: 3 | AJ59: Yes | AL59: 57 | AM59: 4 | AN59: Yes | AO59: 46207.27 | AT59: 57 | AU59: 6 | AV59: Yes | AW59: 589.67 | BF59: 57 | BG59: 9 | BH59: Yes
A60: HAMPTON CITY PUBLIC SCHOOLS | B60: 112 | Z60: 58 | AA60: 1 | AB60: Yes | AC60: 1294642.32 | AD60: 58 | AE60: 2 | AF60: Yes | AH60: 58 | AI60: 3 | AJ60: Yes | AL60: 58 | AM60: 4 | AN60: Yes | AO60: 223954.11 | AT60: 58 | AU60: 6 | AV60: Yes | AW60: 6840.21 | BF60: 58 | BG60: 9 | BH60: Yes | BI60: 86168.67
A61: HANOVER COUNTY PUBLIC SCHOOLS | B61: 42 | Z61: 59 | AA61: 1 | AB61: Yes | AC61: 299225.65 | AD61: 59 | AE61: 2 | AF61: Yes | AH61: 59 | AI61: 3 | AJ61: Yes | AL61: 59 | AM61: 4 | AN61: Yes | AO61: 58049.81 | AT61: 59 | AU61: 6 | AV61: Yes | AW61: 353.8 | BF61: 59 | BG61: 9 | BH61: Yes | BI61: 21774.89
A62: HARRISONBURG CITY PUBLIC SCHOOLS | B62: 113 | Z62: 60 | AA62: 1 | AB62: No | AC62: 1827644.08 | AD62: 60 | AE62: 2 | AF62: No | AH62: 60 | AI62: 3 | AJ62: No | AL62: 60 | AM62: 4 | AN62: No | AO62: 344771.08 | AT62: 60 | AU62: 6 | AV62: No | AW62: 31210.81 | BF62: 60 | BG62: 9 | BH62: No
A63: HENRICO COUNTY PUBLIC SCHOOLS | B63: 43 | Z63: 62 | AA63: 1 | AB63: No | AC63: 436338.29 | AD63: 62 | AE63: 2 | AF63: No | AH63: 62 | AI63: 3 | AJ63: No | AL63: 62 | AM63: 4 | AN63: No | AO63: 88680.4 | AT63: 62 | AU63: 6 | AV63: No | AW63: 4363.58 | BF63: 62 | BG63: 9 | BH63: No | BI63: 36912.08
A64: HENRY COUNTY PUBLIC SCHOOLS | B64: 44 | Z64: 63 | AA64: 1 | AB64: Yes | AC64: 235524.03 | AD64: 63 | AE64: 2 | AF64: Yes | AH64: 63 | AI64: 3 | AJ64: Yes | AL64: 63 | AM64: 4 | AN64: Yes | AO64: 51436.66 | AT64: 63 | AU64: 6 | AV64: Yes | AW64: 2358.69 | BF64: 63 | BG64: 9 | BH64: Yes
A65: HIGHLAND COUNTY PUBLIC SCHOOLS | B65: 45 | Z65: 65 | AA65: 1 | AB65: Yes | AC65: 725875.23 | AD65: 65 | AE65: 2 | AF65: Yes | AG65: 200341.17 | AH65: 65 | AI65: 3 | AJ65: Yes | AL65: 65 | AM65: 4 | AN65: Yes | AO65: 143027.96 | AT65: 65 | AU65: 6 | AV65: Yes | AW65: 17808.13 | BF65: 65 | BG65: 9 | BH65: Yes | BI65: 30092.25
A66: HOPEWELL CITY PUBLIC SCHOOLS | B66: 114 | Z66: 66 | AA66: 1 | AB66: Yes | AC66: 415720.58 | AD66: 66 | AE66: 2 | AF66: Yes | AH66: 66 | AI66: 3 | AJ66: Yes | AL66: 66 | AM66: 4 | AN66: Yes | AO66: 72859.09 | AT66: 66 | AU66: 6 | AV66: Yes | AW66: 2476.63 | BF66: 66 | BG66: 9 | BH66: Yes | BI66: 26834.11
A67: ISLE OF WIGHT COUNTY PUBLIC SCHOOLS | B67: 46 | Z67: 67 | AA67: 1 | AB67: Yes | AC67: 712107.14 | AD67: 67 | AE67: 2 | AF67: Yes | AH67: 67 | AI67: 3 | AJ67: Yes | AL67: 67 | AM67: 4 | AN67: Yes | AO67: 123873.7 | AT67: 67 | AU67: 6 | AV67: Yes | AW67: 9906.51 | BF67: 67 | BG67: 9 | BH67: Yes | BI67: 41060.65
A68: JAMES CITY COUNTY PUBLIC SCHOOLS | B68: 47 | Z68: 68 | AA68: 1 | AB68: Yes | AC68: 711907.43 | AD68: 68 | AE68: 2 | AF68: Yes | AH68: 68 | AI68: 3 | AJ68: Yes | AL68: 68 | AM68: 4 | AN68: Yes | AO68: 136853.58 | AT68: 68 | AU68: 6 | AV68: Yes | AW68: 15657.33 | BF68: 68 | BG68: 9 | BH68: Yes
A69: JAMES MADISON UNIVERSITY | B69: 871 | Z69: 69 | AA69: 1 | AB69: Yes | AC69: 743761.79 | AD69: 69 | AE69: 2 | AF69: Yes | AH69: 69 | AI69: 3 | AJ69: Yes | AL69: 69 | AM69: 4 | AN69: Yes | AO69: 140904.88 | AT69: 69 | AU69: 6 | AV69: Yes | AW69: 2004.89 | BF69: 69 | BG69: 9 | BH69: Yes
A70: KING AND QUEEN COUNTY PUBLIC SCHOOLS | B70: 49 | Z70: 70 | AA70: 1 | AB70: No | AC70: 669452.26 | AD70: 70 | AE70: 2 | AF70: No | AH70: 70 | AI70: 3 | AJ70: No | AL70: 70 | AM70: 4 | AN70: No | AO70: 116294.58 | AT70: 70 | AU70: 6 | AV70: No | AW70: 8609.23 | BF70: 70 | BG70: 9 | BH70: No | BI70: 49297.06
A71: KING GEORGE COUNTY PUBLIC SCHOOLS | B71: 48 | Z71: 71 | AA71: 1 | AB71: No | AC71: 1936344.77 | AD71: 71 | AE71: 2 | AF71: No | AH71: 71 | AI71: 3 | AJ71: No | AL71: 71 | AM71: 4 | AN71: No | AO71: 340390.14 | AT71: 71 | AU71: 6 | AV71: No | AW71: 15095.64 | BF71: 71 | BG71: 9 | BH71: No
A72: KING WILLIAM COUNTY PUBLIC SCHOOLS | B72: 50 | Z72: 72 | AA72: 1 | AB72: No | AC72: 299983.23 | AD72: 72 | AE72: 2 | AF72: No | AH72: 72 | AI72: 3 | AJ72: No | AL72: 72 | AM72: 4 | AN72: No | AO72: 76424.71 | AT72: 72 | AU72: 6 | AV72: No | AW72: 4000.8 | BF72: 72 | BG72: 9 | BH72: No
A73: LANCASTER COUNTY PUBLIC SCHOOLS | B73: 51 | Z73: 73 | AA73: 1 | AB73: Yes | AC73: 821866.06 | AD73: 73 | AE73: 2 | AF73: Yes | AH73: 73 | AI73: 3 | AJ73: Yes | AL73: 73 | AM73: 4 | AN73: Yes | AO73: 149716.19 | AT73: 73 | AU73: 6 | AV73: Yes | AW73: 1297.28 | BF73: 73 | BG73: 9 | BH73: Yes | BI73: 41607.04
A74: LEE COUNTY PUBLIC SCHOOLS | B74: 52 | Z74: 74 | AA74: 1 | AB74: Yes | AC74: 595755.54 | AD74: 74 | AE74: 2 | AF74: Yes | AH74: 74 | AI74: 3 | AJ74: Yes | AL74: 74 | AM74: 4 | AN74: Yes | AO74: 145758 | AT74: 74 | AU74: 6 | AV74: Yes | AW74: 7901.62 | BF74: 74 | BG74: 9 | BH74: Yes
A75: LEXINGTON CITY PUBLIC SCHOOLS | B75: 137 | Z75: 75 | AA75: 1 | AB75: No | AC75: 9359215.49 | AD75: 75 | AE75: 2 | AF75: No | AH75: 75 | AI75: 3 | AJ75: No | AK75: 83222.45 | AL75: 75 | AM75: 4 | AN75: No | AO75: 1193842.68 | AT75: 75 | AU75: 6 | AV75: No | AW75: 1673669.62 | BF75: 75 | BG75: 9 | BH75: No
A76: LOUDOUN COUNTY PUBLIC SCHOOLS | B76: 53 | Z76: 77 | AA76: 1 | AB76: No | AC76: 1035194.35 | AD76: 77 | AE76: 2 | AF76: No | AH76: 77 | AI76: 3 | AJ76: No | AL76: 77 | AM76: 4 | AN76: No | AO76: 210100.98 | AT76: 77 | AU76: 6 | AV76: No | AW76: 2004.89 | BF76: 77 | BG76: 9 | BH76: No
A77: LOUISA COUNTY PUBLIC SCHOOLS | B77: 54 | Z77: 78 | AA77: 1 | AB77: Yes | AC77: 168077.55 | AD77: 78 | AE77: 2 | AF77: Yes | AH77: 78 | AI77: 3 | AJ77: Yes | AL77: 78 | AM77: 4 | AN77: Yes | AO77: 35529.61 | AT77: 78 | AU77: 6 | AV77: Yes | AW77: 1297.28 | BF77: 78 | BG77: 9 | BH77: Yes
A78: LUNENBURG COUNTY PUBLIC SCHOOLS | B78: 55 | Z78: 79 | AA78: 1 | AB78: Yes | AC78: 251322.25 | AD78: 79 | AE78: 2 | AF78: Yes | AH78: 79 | AI78: 3 | AJ78: Yes | AL78: 79 | AM78: 4 | AN78: Yes | AO78: 55251.88 | AT78: 79 | AU78: 6 | AV78: Yes | AW78: 8255.43 | BF78: 79 | BG78: 9 | BH78: Yes | BI78: 22442.71
A79: LYNCHBURG CITY PUBLIC SCHOOLS | B79: 115 | Z79: 80 | AA79: 1 | AB79: No | AC79: 1140222.44 | AD79: 80 | AE79: 2 | AF79: No | AH79: 80 | AI79: 3 | AJ79: No | AL79: 80 | AM79: 4 | AN79: No | AO79: 271412.66 | AT79: 80 | AU79: 6 | AV79: No | AW79: 32265.48 | BF79: 80 | BG79: 9 | BH79: No
A80: MADISON COUNTY PUBLIC SCHOOLS | B80: 56 | Z80: 81 | AA80: 1 | AB80: Yes | AC80: 487094.47 | AD80: 81 | AE80: 2 | AF80: Yes | AH80: 81 | AI80: 3 | AJ80: Yes | AL80: 81 | AM80: 4 | AN80: Yes | AO80: 105392.96 | AT80: 81 | AU80: 6 | AV80: Yes | AW80: 3184.24 | BF80: 81 | BG80: 9 | BH80: Yes
A81: MANASSAS CITY PUBLIC SCHOOLS | B81: 143 | Z81: 82 | AA81: 1 | AB81: No | AC81: 1560395.85 | AD81: 82 | AE81: 2 | AF81: No | AH81: 82 | AI81: 3 | AJ81: No | AL81: 82 | AM81: 4 | AN81: No | AO81: 305475.77 | AT81: 82 | AU81: 6 | AV81: No | AW81: 73935.86 | BF81: 82 | BG81: 9 | BH81: No
A82: MANASSAS PARK CITY PUBLIC SCHOOLS | B82: 144 | Z82: 83 | AA82: 1 | AB82: No | AC82: 1041024.89 | AD82: 83 | AE82: 2 | AF82: No | AH82: 83 | AI82: 3 | AJ82: No | AL82: 83 | AM82: 4 | AN82: No | AO82: 250276.73 | AT82: 83 | AU82: 6 | AV82: No | AW82: 471.74 | BF82: 83 | BG82: 9 | BH82: No | BI82: 77628.7
A83: MARTINSVILLE CITY PUBLIC SCHOOLS | B83: 116 | Z83: 84 | AA83: 1 | AB83: No | AC83: 899401.35 | AD83: 84 | AE83: 2 | AF83: No | AH83: 84 | AI83: 3 | AJ83: No | AL83: 84 | AM83: 4 | AN83: No | AO83: 169718.44 | AT83: 84 | AU83: 6 | AV83: No | AW83: 1179.35 | BF83: 84 | BG83: 9 | BH83: No
A84: MATHEWS COUNTY PUBLIC SCHOOLS | B84: 57 | Z84: 85 | AA84: 1 | AB84: Yes | AC84: 1061982.44 | AD84: 85 | AE84: 2 | AF84: Yes | AH84: 85 | AI84: 3 | AJ84: Yes | AL84: 85 | AM84: 4 | AN84: Yes | AO84: 182563.88 | AT84: 85 | AU84: 6 | AV84: Yes | AW84: 34554.86 | BF84: 85 | BG84: 9 | BH84: Yes
A85: MCVH AUTHORITY | B85: 948 | Z85: 86 | AA85: 1 | AB85: No | AC85: 1224664.82 | AD85: 86 | AE85: 2 | AF85: No | AH85: 86 | AI85: 3 | AJ85: No | AL85: 86 | AM85: 4 | AN85: No | AO85: 237420.89 | AT85: 86 | AU85: 6 | AV85: No | AW85: 1415.22 | BF85: 86 | BG85: 9 | BH85: No | BI85: 89163.73
A86: MECKLENBURG COUNTY PUBLIC SCHOOLS | B86: 58 | Z86: 87 | AA86: 1 | AB86: No | AC86: 548834.55 | AD86: 87 | AE86: 2 | AF86: No | AH86: 87 | AI86: 3 | AJ86: No | AL86: 87 | AM86: 4 | AN86: No | AO86: 119981.92 | AT86: 87 | AU86: 6 | AV86: No | AW86: 0 | BF86: 87 | BG86: 9 | BH86: No
A87: MIDDLESEX COUNTY PUBLIC SCHOOLS | B87: 59 | Z87: 88 | AA87: 1 | AB87: No | AC87: 2505705 | AD87: 88 | AE87: 2 | AF87: No | AH87: 88 | AI87: 3 | AJ87: No | AL87: 88 | AM87: 4 | AN87: No | AO87: 415102.86 | AT87: 88 | AU87: 6 | AV87: No | AW87: 104372.18 | BF87: 88 | BG87: 9 | BH87: No
A88: MONTGOMERY COUNTY PUBLIC SCHOOLS | B88: 60 | Z88: 89 | AA88: 1 | AB88: Yes | AC88: 1493865.24 | AD88: 89 | AE88: 2 | AF88: Yes | AH88: 89 | AI88: 3 | AJ88: Yes | AK88: 65468.33 | AL88: 89 | AM88: 4 | AN88: Yes | AO88: 391608 | AT88: 89 | AU88: 6 | AV88: Yes | AW88: 132204.76 | BF88: 89 | BG88: 9 | BH88: Yes
A89: NELSON COUNTY PUBLIC SCHOOLS | B89: 62 | Z89: 90 | AA89: 1 | AB89: Yes | AC89: 178917.13 | AD89: 90 | AE89: 2 | AF89: Yes | AH89: 90 | AI89: 3 | AJ89: Yes | AL89: 90 | AM89: 4 | AN89: Yes | AO89: 51364.37 | AT89: 90 | AU89: 6 | AV89: Yes | AW89: 235.87 | BF89: 90 | BG89: 9 | BH89: Yes
A90: NEW KENT COUNTY PUBLIC SCHOOLS | B90: 63 | Z90: 91 | AA90: 1 | AB90: Yes | AC90: 384791.1 | AD90: 91 | AE90: 2 | AF90: Yes | AH90: 91 | AI90: 3 | AJ90: Yes | AL90: 91 | AM90: 4 | AN90: Yes | AO90: 87840.74 | AT90: 91 | AU90: 6 | AV90: Yes | AW90: 1533.15 | BF90: 91 | BG90: 9 | BH90: Yes | BI90: 21248.73
A91: NEWPORT NEWS CITY PUBLIC SCHOOLS | B91: 117 | Z91: 92 | AA91: 1 | AB91: No | AC91: 1634724.65 | AD91: 92 | AE91: 2 | AF91: No | AH91: 92 | AI91: 3 | AJ91: No | AL91: 92 | AM91: 4 | AN91: No | AO91: 395412.52 | AT91: 92 | AU91: 6 | AV91: No | AW91: 5896.73 | BF91: 92 | BG91: 9 | BH91: No | BI91: 116908.5
A92: NORFOLK CITY PUBLIC SCHOOLS | B92: 118 | Z92: 93 | AA92: 1 | AB92: Yes | AC92: 797445.56 | AD92: 93 | AE92: 2 | AF92: Yes | AH92: 93 | AI92: 3 | AJ92: Yes | AL92: 93 | AM92: 4 | AN92: Yes | AO92: 166176.8 | AT92: 93 | AU92: 6 | AV92: Yes | AW92: 17499.52 | BF92: 93 | BG92: 9 | BH92: Yes
A93: NORTHAMPTON COUNTY PUBLIC SCHOOLS | B93: 65 | Z93: 94 | AA93: 1 | AB93: Yes | AC93: 1472677.86 | AD93: 94 | AE93: 2 | AF93: Yes | AH93: 94 | AI93: 3 | AJ93: Yes | AL93: 94 | AM93: 4 | AN93: Yes | AO93: 296727.14 | AT93: 94 | AU93: 6 | AV93: Yes | AW93: 7929.23 | BF93: 94 | BG93: 9 | BH93: Yes
A94: NORTHUMBERLAND COUNTY PUBLIC SCHOOLS | B94: 66 | Z94: 95 | AA94: 1 | AB94: Yes | AC94: 612667.46 | AD94: 95 | AE94: 2 | AF94: Yes | AG94: 85401.19 | AH94: 95 | AI94: 3 | AJ94: Yes | AL94: 95 | AM94: 4 | AN94: Yes | AO94: 98032.21 | AT94: 95 | AU94: 6 | AV94: Yes | AW94: 9434.77 | BF94: 95 | BG94: 9 | BH94: Yes | BI94: 30375.57
A95: NORTON CITY PUBLIC SCHOOLS | B95: 119 | Z95: 96 | AA95: 1 | AB95: No | AC95: 1830587.27 | AD95: 96 | AE95: 2 | AF95: No | AH95: 96 | AI95: 3 | AJ95: No | AL95: 96 | AM95: 4 | AN95: No | AO95: 396538.21 | AT95: 96 | AU95: 6 | AV95: No | AW95: 2830.43 | BF95: 96 | BG95: 9 | BH95: No | BI95: 111060.04
A96: NOTTOWAY COUNTY PUBLIC SCHOOLS | B96: 67 | Z96: 97 | AA96: 1 | AB96: Yes | AC96: 955292.83 | AD96: 97 | AE96: 2 | AF96: Yes | AH96: 97 | AI96: 3 | AJ96: Yes | AL96: 97 | AM96: 4 | AN96: Yes | AO96: 194377.49 | AT96: 97 | AU96: 6 | AV96: Yes | AW96: 1061.41 | BF96: 97 | BG96: 9 | BH96: Yes | BI96: 80866.6
A97: OLD DOMINION UNIVERSITY | B97: 798 | Z97: 98 | AA97: 1 | AB97: Yes | AC97: 790862.23 | AD97: 98 | AE97: 2 | AF97: Yes | AH97: 98 | AI97: 3 | AJ97: Yes | AL97: 98 | AM97: 4 | AN97: Yes | AO97: 245176.31 | AT97: 98 | AU97: 6 | AV97: Yes | AW97: 46105.14 | BF97: 98 | BG97: 9 | BH97: Yes
A98: ORANGE COUNTY PUBLIC SCHOOLS | B98: 68 | Z98: 101 | AA98: 1 | AB98: No | AC98: 2424663.52 | AD98: 101 | AE98: 2 | AF98: No | AH98: 101 | AI98: 3 | AJ98: No | AL98: 101 | AM98: 4 | AN98: No | AO98: 468249.94 | AT98: 101 | AU98: 6 | AV98: No | AW98: 467470.4 | BF98: 101 | BG98: 9 | BH98: No
A99: PAGE COUNTY PUBLIC SCHOOLS | B99: 69 | Z99: 102 | AA99: 1 | AB99: Yes | AC99: 1187022.84 | AD99: 102 | AE99: 2 | AF99: Yes | AH99: 102 | AI99: 3 | AJ99: Yes | AL99: 102 | AM99: 4 | AN99: Yes | AO99: 143172.31 | AT99: 102 | AU99: 6 | AV99: Yes | AW99: 4009.78 | BF99: 102 | BG99: 9 | BH99: Yes
A100: PATRICK COUNTY PUBLIC SCHOOLS | B100: 70 | Z100: 103 | AA100: 1 | AB100: No | AC100: 222093.19 | AD100: 103 | AE100: 2 | AF100: No | AH100: 103 | AI100: 3 | AJ100: No | AL100: 103 | AM100: 4 | AN100: No | AO100: 43172.6 | AT100: 103 | AU100: 6 | AV100: No | AW100: 0 | BF100: 103 | BG100: 9 | BH100: No | BI100: 19569.07
A101: PETERSBURG CITY PUBLIC SCHOOLS | B101: 120 | Z101: 104 | AA101: 1 | AB101: Yes | AC101: 1310005.38 | AD101: 104 | AE101: 2 | AF101: Yes | AH101: 104 | AI101: 3 | AJ101: Yes | AK101: 43275.68 | AL101: 104 | AM101: 4 | AN101: Yes | AO101: 255988.07 | AT101: 104 | AU101: 6 | AV101: Yes | AW101: 54601.12 | BF101: 104 | BG101: 9 | BH101: Yes
A102: PITTSYLVANIA COUNTY PUBLIC SCHOOLS | B102: 71 | Z102: 106 | AA102: 1 | AB102: Yes | AC102: 426114.92 | AD102: 106 | AE102: 2 | AF102: Yes | AH102: 106 | AI102: 3 | AJ102: Yes | AL102: 106 | AM102: 4 | AN102: Yes | AO102: 69828.73 | AT102: 106 | AU102: 6 | AV102: Yes | AW102: 9552.71 | BF102: 106 | BG102: 9 | BH102: Yes
A103: POQUOSON CITY PUBLIC SCHOOLS | B103: 142 | Z103: 107 | AA103: 1 | AB103: No | AC103: 189854 | AD103: 107 | AE103: 2 | AF103: No | AH103: 107 | AI103: 3 | AJ103: No | AL103: 107 | AM103: 4 | AN103: No | AO103: 50021.95 | AT103: 107 | AU103: 6 | AV103: No | AW103: 471.74 | BF103: 107 | BG103: 9 | BH103: No | BI103: 16938.28
A104: PORTSMOUTH CITY PUBLIC SCHOOLS | B104: 121 | Z104: 108 | AA104: 1 | AB104: No | AC104: 3362135.93 | AD104: 108 | AE104: 2 | AF104: No | AH104: 108 | AI104: 3 | AJ104: No | AL104: 108 | AM104: 4 | AN104: No | AO104: 475518.84 | AT104: 108 | AU104: 6 | AV104: No | AW104: 22171.72 | BF104: 108 | BG104: 9 | BH104: No
A105: POWHATAN COUNTY PUBLIC SCHOOLS | B105: 72 | Z105: 109 | AA105: 1 | AB105: No | AC105: 35900.35 | AD105: 109 | AE105: 2 | AF105: No | AH105: 109 | AI105: 3 | AJ105: No | AL105: 109 | AM105: 4 | AN105: No | AO105: 26777.29 | AT105: 109 | AU105: 6 | AV105: No | AW105: 18254.35 | BF105: 109 | BG105: 9 | BH105: No
A106: PRINCE EDWARD COUNTY PUBLIC SCHOOLS | B106: 73 | Z106: 110 | AA106: 1 | AB106: No | AC106: 869495.9 | AD106: 110 | AE106: 2 | AF106: No | AH106: 110 | AI106: 3 | AJ106: No | AL106: 110 | AM106: 4 | AN106: No | AO106: 126345.28 | AT106: 110 | AU106: 6 | AV106: No | AW106: 47173.87 | BF106: 110 | BG106: 9 | BH106: No
A107: PRINCE GEORGE COUNTY PUBLIC SCHOOLS | B107: 74 | Z107: 111 | AA107: 1 | AB107: No | AC107: 479304.13 | AD107: 111 | AE107: 2 | AF107: No | AH107: 111 | AI107: 3 | AJ107: No | AL107: 111 | AM107: 4 | AN107: No | AO107: 64239.87 | AT107: 111 | AU107: 6 | AV107: No | AW107: 22053.78 | BF107: 111 | BG107: 9 | BH107: No | BI107: 24344.98
A108: PRINCE WILLIAM COUNTY PUBLIC SCHOOLS | B108: 75 | Z108: 112 | AA108: 1 | AB108: No | AC108: 5925925.06 | AD108: 112 | AE108: 2 | AF108: No | AH108: 112 | AI108: 3 | AJ108: No | AL108: 112 | AM108: 4 | AN108: No | AO108: 940652.91 | AT108: 112 | AU108: 6 | AV108: No | AW108: 46199.34 | BF108: 112 | BG108: 9 | BH108: No
A109: PULASKI COUNTY PUBLIC SCHOOLS | B109: 77 | Z109: 113 | AA109: 1 | AB109: No | AC109: 1430946 | AD109: 113 | AE109: 2 | AF109: No | AH109: 113 | AI109: 3 | AJ109: No | AL109: 113 | AM109: 4 | AN109: No | AO109: 168091.94 | AT109: 113 | AU109: 6 | AV109: No | AW109: 215098.96 | BF109: 113 | BG109: 9 | BH109: No
A110: RADFORD CITY PUBLIC SCHOOLS | B110: 122 | Z110: 114 | AA110: 1 | AB110: Yes | AC110: 1270239.23 | AD110: 114 | AE110: 2 | AF110: Yes | AH110: 114 | AI110: 3 | AJ110: Yes | AL110: 114 | AM110: 4 | AN110: Yes | AO110: 208604.76 | AT110: 114 | AU110: 6 | AV110: Yes | AW110: 12147.27 | BF110: 114 | BG110: 9 | BH110: Yes
A111: RAPPAHANNOCK COUNTY PUBLIC SCHOOLS | B111: 78 | Z111: 115 | AA111: 1 | AB111: Yes | AC111: 3087839.06 | AD111: 115 | AE111: 2 | AF111: Yes | AH111: 115 | AI111: 3 | AJ111: Yes | AK111: 122059.6 | AL111: 115 | AM111: 4 | AN111: Yes | AO111: 538840.68 | AT111: 115 | AU111: 6 | AV111: Yes | AW111: 19930.96 | BF111: 115 | BG111: 9 | BH111: Yes
A112: RICHMOND CITY PUBLIC SCHOOLS | B112: 123 | Z112: 116 | AA112: 1 | AB112: Yes | AC112: 1034151.34 | AD112: 116 | AE112: 2 | AF112: Yes | AH112: 116 | AI112: 3 | AJ112: Yes | AL112: 116 | AM112: 4 | AN112: Yes | AO112: 121656.14 | AT112: 116 | AU112: 6 | AV112: Yes | AW112: 10967.92 | BF112: 116 | BG112: 9 | BH112: Yes | BI112: 41485.62
A113: RICHMOND COUNTY PUBLIC SCHOOLS | B113: 79 | Z113: 117 | AA113: 1 | AB113: No | AC113: 8621665.58 | AD113: 117 | AE113: 2 | AF113: No | AH113: 117 | AI113: 3 | AJ113: No | AK113: 88770.62 | AL113: 117 | AM113: 4 | AN113: No | AO113: 1472911.9 | AT113: 117 | AU113: 6 | AV113: No | AW113: 131809.91 | BF113: 117 | BG113: 9 | BH113: No
A114: ROANOKE CITY PUBLIC SCHOOLS | B114: 124 | Z114: 118 | AA114: 1 | AB114: Yes | AC114: 12444819.02 | AD114: 118 | AE114: 2 | AF114: Yes | AH114: 118 | AI114: 3 | AJ114: Yes | AK114: 169773.81 | AL114: 118 | AM114: 4 | AN114: Yes | AO114: 2091288.19 | AT114: 118 | AU114: 6 | AV114: Yes | AW114: 75360.25 | BF114: 118 | BG114: 9 | BH114: Yes
A115: ROANOKE COUNTY PUBLIC SCHOOLS | B115: 80 | Z115: 119 | AA115: 1 | AB115: Yes | AC115: 196028.34 | AD115: 119 | AE115: 2 | AF115: Yes | AH115: 119 | AI115: 3 | AJ115: Yes | AL115: 119 | AM115: 4 | AN115: Yes | AO115: 42550.62 | AT115: 119 | AU115: 6 | AV115: Yes | AW115: 589.67 | BF115: 119 | BG115: 9 | BH115: Yes | BI115: 16472.83
A116: ROCKBRIDGE COUNTY PUBLIC SCHOOLS | B116: 81 | Z116: 120 | AA116: 1 | AB116: Yes | AC116: 2363020.53 | AD116: 120 | AE116: 2 | AF116: Yes | AH116: 120 | AI116: 3 | AJ116: Yes | AL116: 120 | AM116: 4 | AN116: Yes | AO116: 361057.2 | AT116: 120 | AU116: 6 | AV116: Yes | AW116: 16958.7 | BF116: 120 | BG116: 9 | BH116: Yes
A117: ROCKINGHAM COUNTY PUBLIC SCHOOLS | B117: 82 | Z117: 121 | AA117: 1 | AB117: Yes | AC117: 5309040.83 | AD117: 121 | AE117: 2 | AF117: Yes | AH117: 121 | AI117: 3 | AJ117: Yes | AL117: 121 | AM117: 4 | AN117: Yes | AO117: 983456.93 | AT117: 121 | AU117: 6 | AV117: Yes | AW117: 6604.34 | BF117: 121 | BG117: 9 | BH117: Yes
A118: RUSSELL COUNTY PUBLIC SCHOOLS | B118: 83 | Z118: 122 | AA118: 1 | AB118: No | AC118: 330069.44 | AD118: 122 | AE118: 2 | AF118: No | AH118: 122 | AI118: 3 | AJ118: No | AL118: 122 | AM118: 4 | AN118: No | AO118: 58624.77 | AT118: 122 | AU118: 6 | AV118: No | AW118: 2830.43 | BF118: 122 | BG118: 9 | BH118: No
A119: SALEM CITY PUBLIC SCHOOLS | B119: 139 | Z119: 123 | AA119: 1 | AB119: No | AC119: 15808821.49 | AD119: 123 | AE119: 2 | AF119: No | AH119: 123 | AI119: 3 | AJ119: No | AK119: 68797.23 | AL119: 123 | AM119: 4 | AN119: No | AO119: 1776735.68 | AT119: 123 | AU119: 6 | AV119: No | AW119: 143402.03 | BF119: 123 | BG119: 9 | BH119: No
A120: SCOTT COUNTY PUBLIC SCHOOLS | B120: 84 | Z120: 124 | AA120: 1 | AB120: Yes | AC120: 5101630.67 | AD120: 124 | AE120: 2 | AF120: Yes | AH120: 124 | AI120: 3 | AJ120: Yes | AL120: 124 | AM120: 4 | AN120: Yes | AO120: 809850.07 | AT120: 124 | AU120: 6 | AV120: Yes | AW120: 117109.12 | BF120: 124 | BG120: 9 | BH120: Yes
A121: SHENANDOAH COUNTY PUBLIC SCHOOLS | B121: 85 | Z121: 126 | AA121: 1 | AB121: No | AC121: 777776.34 | AD121: 126 | AE121: 2 | AF121: No | AH121: 126 | AI121: 3 | AJ121: No | AL121: 126 | AM121: 4 | AN121: No | AO121: 136735.49 | AT121: 126 | AU121: 6 | AV121: No | AW121: 5189.13 | BF121: 126 | BG121: 9 | BH121: No
A122: SMYTH COUNTY PUBLIC SCHOOLS | B122: 86 | Z122: 127 | AA122: 1 | AB122: Yes | AC122: 2838005.51 | AD122: 127 | AE122: 2 | AF122: Yes | AH122: 127 | AI122: 3 | AJ122: Yes | AL122: 127 | AM122: 4 | AN122: Yes | AO122: 522740.96 | AT122: 127 | AU122: 6 | AV122: Yes | AW122: 3066.3 | BF122: 127 | BG122: 9 | BH122: Yes
A123: SOUTHAMPTON COUNTY PUBLIC SCHOOLS | B123: 87 | Z123: 128 | AA123: 1 | AB123: No | AC123: 11439845.93 | AD123: 128 | AE123: 2 | AF123: No | AH123: 128 | AI123: 3 | AJ123: No | AK123: 207501.32 | AL123: 128 | AM123: 4 | AN123: No | AO123: 2181722.74 | AT123: 128 | AU123: 6 | AV123: No | AW123: 132586.43 | BF123: 128 | BG123: 9 | BH123: No
A124: SOUTHWESTERN VA TRAINING CENTER | B124: 951 | Z124: 130 | AA124: 1 | AB124: Yes | AC124: 945847.46 | AD124: 130 | AE124: 2 | AF124: Yes | AH124: 130 | AI124: 3 | AJ124: Yes | AL124: 130 | AM124: 4 | AN124: Yes | AO124: 142325.97 | AT124: 130 | AU124: 6 | AV124: Yes | AW124: 14859.77 | BF124: 130 | BG124: 9 | BH124: Yes
A125: SPOTSYLVANIA COUNTY PUBLIC SCHOOLS | B125: 88 | Z125: 131 | AA125: 1 | AB125: Yes | AC125: 290080.55 | AD125: 131 | AE125: 2 | AF125: Yes | AH125: 131 | AI125: 3 | AJ125: Yes | AL125: 131 | AM125: 4 | AN125: Yes | AO125: 239593.03 | AT125: 131 | AU125: 6 | AV125: Yes | AW125: 55989.35 | BF125: 131 | BG125: 9 | BH125: Yes
A126: STAFFORD COUNTY PUBLIC SCHOOLS | B126: 89 | Z126: 132 | AA126: 1 | AB126: Yes | AC126: 918051.51 | AD126: 132 | AE126: 2 | AF126: Yes | AH126: 132 | AI126: 3 | AJ126: Yes | AL126: 132 | AM126: 4 | AN126: Yes | AO126: 146366.36 | AT126: 132 | AU126: 6 | AV126: Yes | AW126: 95409.14 | BF126: 132 | BG126: 9 | BH126: Yes
A127: STAUNTON CITY PUBLIC SCHOOLS | B127: 126 | Z127: 134 | AC127: 203535.25 | AD127: 134 | AE127: 2 | AH127: 134 | AI127: 3 | AL127: 134 | AM127: 4 | AT127: 134 | AU127: 6 | BF127: 134 | BG127: 9
A128: SUFFOLK CITY PUBLIC SCHOOLS | B128: 127 | Z128: 135 | AA128: 1 | AB128: Yes | AC128: 582345.29 | AD128: 135 | AE128: 2 | AF128: Yes | AH128: 135 | AI128: 3 | AJ128: Yes | AL128: 135 | AM128: 4 | AN128: Yes | AO128: 93799.53 | AT128: 135 | AU128: 6 | AV128: Yes | AW128: 825.54 | BF128: 135 | BG128: 9 | BH128: Yes | BI128: 22726.02
A129: SURRY COUNTY PUBLIC SCHOOLS | B129: 90 | Z129: 136 | AA129: 1 | AB129: No | AC129: 5736458.19 | AD129: 136 | AE129: 2 | AF129: No | AH129: 136 | AI129: 3 | AJ129: No | AL129: 136 | AM129: 4 | AN129: No | AO129: 1146606.13 | AT129: 136 | AU129: 6 | AV129: No | AW129: 83615.68 | BF129: 136 | BG129: 9 | BH129: No
A130: SUSSEX COUNTY PUBLIC SCHOOLS | B130: 91 | Z130: 137 | AA130: 1 | AB130: No | AC130: 45424.18 | AD130: 137 | AE130: 2 | AF130: No | AH130: 137 | AI130: 3 | AJ130: No | AL130: 137 | AM130: 4 | AN130: No | AO130: 22988.75 | AT130: 137 | AU130: 6 | AV130: No | AW130: 1886.95 | BF130: 137 | BG130: 9 | BH130: No
A131: TAZEWELL COUNTY PUBLIC SCHOOLS | B131: 92 | Z131: 138 | AC131: 408279.26 | AD131: 138 | AE131: 2 | AH131: 138 | AI131: 3 | AL131: 138 | AM131: 4 | AT131: 138 | AU131: 6 | BF131: 138 | BG131: 9
A132: VA BEACH CITY PUBLIC SCHOOLS | B132: 128 | Z132: 139 | AA132: 1 | AB132: Yes | AC132: 426422.45 | AD132: 139 | AE132: 2 | AF132: Yes | AH132: 139 | AI132: 3 | AJ132: Yes | AL132: 139 | AM132: 4 | AN132: Yes | AO132: 110906.44 | AT132: 139 | AU132: 6 | AV132: Yes | AW132: 7076.08 | BF132: 139 | BG132: 9 | BH132: Yes
A133: VA DEPT OF CORRECTIONAL EDUCATION | B133: 900 | Z133: 140 | AA133: 1 | AC133: 248360.28 | AD133: 140 | AE133: 2 | AH133: 140 | AI133: 3 | AL133: 140 | AM133: 4 | AT133: 140 | AU133: 6 | BF133: 140 | BG133: 9
A134: VIRGINIA COMMONWEALTH UNIVERSITY | B134: 881 | Z134: 142 | AB134: Yes | AC134: 103300.01 | AD134: 142 | AE134: 2 | AF134: Yes | AH134: 142 | AI134: 3 | AJ134: Yes | AL134: 142 | AM134: 4 | AN134: Yes | AO134: 42657.15 | AT134: 142 | AU134: 6 | AV134: Yes | AW134: 1297.28 | BF134: 142 | BG134: 9 | BH134: Yes
A135: VSDB HAMPTON | B135: 219 | Z135: 143 | AA135: 1 | AB135: Yes | AC135: 1224558.32 | AD135: 143 | AE135: 2 | AF135: Yes | AH135: 143 | AI135: 3 | AJ135: Yes | AL135: 143 | AM135: 4 | AN135: Yes | AO135: 151662.18 | AT135: 143 | AU135: 6 | AV135: Yes | AW135: 280566.57 | BF135: 143 | BG135: 9 | BH135: Yes
A136: VSDB STAUNTON | B136: 218 | Z136: 144 | AA136: 1 | AB136: Yes | AC136: 339650.44 | AD136: 144 | AE136: 2 | AF136: Yes | AH136: 144 | AI136: 3 | AJ136: Yes | AL136: 144 | AM136: 4 | AN136: Yes | AO136: 57416.91 | AT136: 144 | AU136: 6 | AV136: Yes | AW136: 113806.95 | BF136: 144 | BG136: 9 | BH136: Yes
A137: WARREN COUNTY PUBLIC SCHOOLS | B137: 93 | Z137: 202 | AA137: 1 | AB137: Yes | AC137: 270941.82 | AD137: 202 | AE137: 2 | AF137: Yes | AH137: 202 | AI137: 3 | AJ137: Yes | AL137: 202 | AM137: 4 | AN137: Yes | AO137: 24497.49 | AT137: 202 | AU137: 6 | AV137: Yes | AW137: 1061.41 | BF137: 202 | BG137: 9 | BH137: Yes | BI137: 11454.09
A138: WASHINGTON COUNTY PUBLIC SCHOOLS | B138: 94 | Z138: 207 | AA138: 1 | AB138: Yes | AC138: 61153.61 | AD138: 207 | AE138: 2 | AF138: Yes | AH138: 207 | AI138: 3 | AJ138: Yes | AL138: 207 | AM138: 4 | AN138: Yes | AO138: 15968.96 | AT138: 207 | AU138: 6 | AV138: Yes | AW138: 1061.41 | BF138: 207 | BG138: 9 | BH138: Yes
A139: WAYNESBORO CITY PUBLIC SCHOOLS | B139: 130 | Z139: 218 | AA139: 1 | AB139: No | AC139: 88380.54 | AD139: 218 | AE139: 2 | AF139: No | AH139: 218 | AI139: 3 | AJ139: No | AL139: 218 | AM139: 4 | AN139: No | AO139: 18161.31 | AT139: 218 | AU139: 6 | AV139: No | BF139: 218 | BG139: 9 | BH139: No
A140: WEST POINT TOWN PUBLIC SCHOOLS | B140: 207 | Z140: 219 | AD140: 219 | AE140: 2 | AH140: 219 | AI140: 3 | AL140: 219 | AM140: 4 | AT140: 219 | AU140: 6 | BF140: 219 | BG140: 9
A141: WESTMORELAND COUNTY PUBLIC SCHOOLS | B141: 95 | Z141: 871 | AD141: 871 | AE141: 2 | AG141: 243076.71 | AH141: 871 | AI141: 3 | AL141: 871 | AM141: 4 | AT141: 871 | AU141: 6 | BF141: 871 | BG141: 9
A142: WILLIAMSBURG CITY PUBLIC SCHOOLS | B142: 131 | Z142: 917 | AD142: 917 | AE142: 2 | AH142: 917 | AI142: 3 | AL142: 917 | AM142: 4 | AT142: 917 | AU142: 6 | BF142: 900 | BG142: 9
A143: WINCHESTER CITY PUBLIC SCHOOLS | B143: 132
A144: WISE COUNTY PUBLIC SCHOOLS | B144: 96 | AC144: =SUM(AC3:AC142) -> 216737360.7 | AG144: =SUM(AG3:AG142) -> 938370.9 | AK144: =SUM(AK3:AK143) -> 1107013.45 | AO144: =SUM(AO2:AO143) -> 38258742.92 | AS144: =SUM(AS3:AS142) -> 0 | AW144: =SUM(AW3:AW142) -> 11670120 | BA144: =SUM(BA3:BA142) -> 0 | BI144: =SUM(BI3:BI142) -> 1952272.8
A145: WOODROW WILSON REHABILITATION CTR | B145: 947
A146: WYTHE COUNTY PUBLIC SCHOOLS | B146: 97
A147: YORK COUNTY PUBLIC SCHOOLS | B147: 98 | BI147: =SUM(BH191:BH229) -> 0
Y149: 1
Y150: 2
Y151: 3
Y152: 4
Y153: 5
Y154: 6
Y155: 7
Y156: 8
Y157: 9
Y158: 10
Y159: 11
Y160: 12
Y161: 13
Y162: 14
Y163: 15
Y164: 16
Y165: 17
Y166: 18
Y167: 19
Y168: 20
Y169: 21
Y170: 22
Y171: 23
Y172: 24
Y173: 25
Y174: 26
Y175: 27
Y176: 28
Y177: 29
Y178: 30
Y179: 31
Y180: 32
Y181: 33
Y182: 34
Y183: 35
Y184: 36
Y185: 37
Y186: 38
Y187: 39
Y188: 40
Y189: 41
Y190: 42
Y191: 43
Y192: 44
Y193: 45
Y194: 46
Y195: 47
Y196: 48
Y197: 49
Y198: 50
Y199: 51
Y200: 52
Y201: 53
... 87 more rows

Sheet Transferability
E1: School Division: | G1: ='Title I, Part C'!$A$16 -> ALBEMARLE COUNTY PUBLIC SCHOOLS | N1: Division Number: | R1: ='Title I, Part C'!I16 -> 2
A2: H. TRANSFERABILITY
A4: Section 5103(b)(2) of ESSA allows divisions to transfer all or a portion of the funds received from Title II, Part A, or Title IV, Part A, into: Title I, Part A; Title I, Part C; Title I, Part D; Title II, Part A; Title III, Part A; Title IV, Part A; or Title V, Part B.
A6: Complete the tab below if funds will be transferred under Section 5103(b)(2). Please note that prior approval is required to transfer funds. The transfer request form is provided at
A7: http://www.doe.virginia.gov/federal_programs/esea/forms/lea_funds_transfer_request.docx.
D9: Amount Budgeted
D10: Title I, Part A | F10: Title I, Part C | H10: Title I, Part D | J10: Title II, Part A | L10: Title III, Part A | P10: Title IV, Part A | Q10: Title V, Part B
L11: EL | N11: IY
D12: Title II, Part A, Transferability | E12: Title IV, Part A, Transferability | F12: Title II, Part A, Transferability Award S367A180044 Project Code APE60014 | G12: Title IV, Part A, Transferability Award S424A180048 Project Code APE60020 | H12: Title II, Part A, Transferability | I12: Title IV, Part A, Transferability | J12: Title IV, Part A, Transferability | L12: Title II, Part A, Transferability | M12: Title IV, Part A, Transferability | N12: Title II, Part A, Transferability | O12: Title IV, Part A, Transferability | P12: Title II, Part A, Transferability | Q12: Title II, Part A, Transferability | R12: Title IV, Part A, Transferability
A13: Amount Transferred to Program | F13: ='Title I, Part C'!N60 -> 0 | G13: ='Title I, Part C'!N63 -> 0
A14: OBJECT CODE - EXPENDITURE TYPE
A15: 1000 - Personal Services
A16: Administration | F16: 0 | G16: 0
A17: Teachers | F17: 0 | G17: 0
A18: Paraprofessionals | F18: 0 | G18: 0
A19: Teacher Incentives
A20: Focus Schools, if applicable
A21: Other Title I Schools in Improvement, if applicable | F21: 0
A22: Private School Set-Aside | F22: 0 | G22: 0
A23: Parent and Family Engagement | F23: 0 | G23: 0
A24: Professional Development | F24: 0 | G24: 0
A25: Value of professional development personnel-related services or stipends on behalf of private schools
A26: Other | F26: 0 | G26: 0
A27: Total Personal Services | F27: =SUM(F16:F26) -> 0 | G27: =SUM(G16:G26) -> 0
A28: 2000 - Employee Benefits
A29: Fixed Charges (Administrative and Instruction) | F29: 0 | G29: 0
A30: Teacher Incentives
A31: Fixed Charges (Focus Schools, if applicable)
A32: Other Title I Schools in Improvement, if applicable | F32: 0
A33: Private School Set-Aside | F33: 0 | G33: 0
A34: Fixed Charges (Parent and Family Engagement) | F34: 0 | G34: 0
A35: Fixed Charges (Professional Development) | F35: 0 | G35: 0
A36: Value of professional development personnel-related benefits on behalf of private schools
A37: Total Employee Benefits | F37: =SUM(F29:F36) -> 0 | G37: =SUM(G29:G36) -> 0
A38: 3000 - Purchased/Contracted Services
A39: Supportive Services (Med., Dental) | F39: 0 | G39: 0
A40: Evaluation Services | F40: 0 | G40: 0
A41: Priority Schools, if applicable
A42: Focus Schools, if applicable
A43: Parent and Family Engagement | F43: 0 | G43: 0
A44: Other Title I Schools in Improvement, if applicable | F44: 0
A45: Private School Set-Aside | F45: 0 | G45: 0
A46: Professional Development | F46: 0 | G46: 0
A47: Teacher Quality (i.e., assessments; recruitment) | F47: 0 | G47: 0
A48: Tutoring Services | F48: 0 | G48: 0
A49: Other | F49: 0 | G49: 0
A50: Total Purchased/Contracted Services | F50: =SUM(F39:F49) -> 0 | G50: =SUM(G39:G49) -> 0
A51: 4000 - Internal Services
A52: Public School Choice Transportation | F52: 0 | G52: 0
A53: Pupil Transportation | F53: 0 | G53: 0
A54: Food Services | F54: 0 | G54: 0
A55: Priority Schools, if applicable
A56: Focus Schools, if applicable
A57: Other Title I Schools in Improvement, if applicable | F57: 0
A58: Private School Set-Aside | F58: 0 | G58: 0
A59: Professional Development | F59: 0 | G59: 0
A60: Parent and Family Engagement | F60: 0 | G60: 0
A61: Other | F61: 0 | G61: 0
A62: Total Internal Services | F62: =SUM(F52:F61) -> 0 | G62: =SUM(G52:G61) -> 0
A63: 5000 - Other Charges
A64: Travel (Staff/Administrative) | F64: 0 | G64: 0
A65: Maintenance/Operation of Plant | F65: 0 | G65: 0
A66: Indirect Cost | F66: 0 | G66: 0
A67: Priority Schools, if applicable
A68: Focus Schools, if applicable
A69: Other Title I Schools in Improvement, if applicable
A70: Private School Set-Aside | F70: 0 | G70: 0
A71: Professional Development | F71: 0 | G71: 0
A72: Parent and Family Engagement | F72: 0 | G72: 0
A73: Other | F73: 0 | G73: 0
A74: Total Other Charges | F74: =SUM(F64:F73) -> 0 | G74: =SUM(G64:G73) -> 0
A75: 6000 - Materials and Supplies
A76: Administrative | F76: 0 | G76: 0
A77: Instructional | F77: 0 | G77: 0
A78: Priority Schools, if applicable
A79: Focus Schools, if applicable
A80: Other Title I Schools in Improvement, if applicable | F80: 0
A81: Private School Set-Aside | F81: 0 | G81: 0
A82: Professional Development | F82: 0 | G82: 0
A83: Parent and Family Engagement | F83: 0 | G83: 0
A84: Other
A85: Total Materials and Supplies | F85: =SUM(F76:F84) -> 0 | G85: =SUM(G76:G84) -> 0
A86: 8000 - Capital Outlay
A87: Equipment for Instruction | F87: 0 | G87: 0
A88: Buildings | F88: 0 | G88: 0
A89: Remodeling | F89: 0 | G89: 0
A90: Professional Development | F90: 0 | G90: 0
A91: Parent and Family Engagement | F91: 0 | G91: 0
A92: All Other Equipment | F92: 0 | G92: 0
A93: Total Capital Outlay | F93: =SUM(F87:F92) -> 0 | G93: =SUM(G87:G92) -> 0
A94: TOTAL BUDGET | F94: =SUM(F27,F37,F50,F62,F74,F85,F93) -> 0 | G94: =SUM(G27,G37,G50,G62,G74,G85,G93) -> 0
A95: Does Budget Match Amount Transferred to Program? | F95: =IF(F94=F13,"Yes","No") -> Yes | G95: =IF(G94=G13,"Yes","No") -> Yes
A97: Page 29
E98: School Division: | G98: ='Title I, Part C'!$A$16 -> ALBEMARLE COUNTY PUBLIC SCHOOLS | N98: Division Number: | P98: ='Title I, Part C'!I16 -> 2
A100: DETAILED BUDGET BREAKDOWN
A101: Include a detailed breakdown of the budget categories for Object Codes 1000-6000 and 8000, as shown on pages 28-29.
A103: DETAILED BUDGET DESCRIPTION OF OBJECT CODE 1000
A104: If applicable, indicate the positions and FTEs supported with funds from this program.
A107: Item Description | H107: Funding Source | L107: FTEs | N107: Total Cost
I117: Total for Object Code: | L117: =SUM(L108:M116) -> 0 | N117: =SUM(N108:P116) -> 0
A120: DETAILED BUDGET DESCRIPTION OF OBJECT CODE 2000
A121: Indicate the fixed charge categories (such as FICA, health insurance, etc.) and specify the amount of each.
A124: Item Description | J124: Funding Source | N124: Total Cost
K133: Total for Object Code: | N133: =SUM(N125:P132) -> 0
A135: Page 30
E136: School Division: | G136: ='Title I, Part C'!A16 -> ALBEMARLE COUNTY PUBLIC SCHOOLS | M136: Division Number: | P136: ='Title I, Part C'!I16 -> 2
A137: JUSTIFICATION FOR PROFESSIONAL DEVELOPMENT - OBJECT CODE 3000
A138: If program funds are expended for professional development, justify such expenditures by demonstrating a relationship between the proposed expenditure for professional development and the program services and activities described in the application. Please indicate how these funds will support any services and activities that are described in this application.
A141: Item Description | J141: Funding Source | N141: Total Cost
K150: Total for Object Code: | N150: =SUM(N142:P149) -> 0
A153: DETAILED BUDGET DESCRIPTION OF OBJECT CODE 3000
A154: Provide a description of evaluation services or other expenses related to purchased or contracted services that are not related to the professional development detailed above.
A157: Item Description | J157: Funding Source | N157: Total Cost
K166: Total for Object Code: | N166: =SUM(N158:P165) -> 0
A168: Page 31
E169: School Division: | G169: ='Title I, Part C'!A16 -> ALBEMARLE COUNTY PUBLIC SCHOOLS | M169: Division Number: | P169: ='Title I, Part C'!I16 -> 2
A170: DETAILED BUDGET BREAKDOWN (CONTINUED)
A171: JUSTIFICATION FOR INTERNAL SERVICES - OBJECT CODE 4000
A172: If program funds are expended for internal services, describe these services below.
A175: Item Description | J175: Funding Source | N175: Total Cost
K182: Total for Object Code: | N182: =SUM(N176:P181) -> 0
A185: JUSTIFICATION FOR TRAVEL COSTS - OBJECT CODE 5000
A186: Travel must be justified by demonstrating a relationship between the proposed travel and the needs of the program. Please indicate the estimated cost.
A189: Item Description | J189: Funding Source | N189: Total Cost
K201: Total for Object Code: | N201: =SUM(N190:P200) -> 0
A203: Page 32
E204: School Division: | G204: ='Title I, Part C'!A16 -> ALBEMARLE COUNTY PUBLIC SCHOOLS | M204: Division Number: | P204: ='Title I, Part C'!I16 -> 2
A205: DETAILED BUDGET DESCRIPTION FOR OBJECT CODE 5000
A206: If applicable, indicate indirect costs charged to this program. Indirect costs cannot be claimed against capital outlay and equipment.
A209: Item Description | J209: Funding Source | N209: Total Cost
K218: Total for Object Code: | N218: =SUM(N210:P217) -> 0
A221: JUSTIFICATION FOR MATERIALS AND SUPPLIES - OBJECT CODE 6000
A222: Provide a description of materials, supplies, and all equipment less than $5,000 per unit. Indicate the equipment quantity.
A225: Item Description | H225: Funding Source | L225: Quantities | N225: Total Cost
I242: Total for Object Code: | L242: =SUM(L226:M241) -> 0 | N242: =SUM(N226:P241) -> 0
A244: Page 33
E245: School Division: | G245: ='Title I, Part C'!A16 -> ALBEMARLE COUNTY PUBLIC SCHOOLS | M245: Division Number: | P245: ='Title I, Part C'!I16 -> 2
A246: JUSTIFICATION FOR CAPITAL OUTLAY - OBJECT CODE 8000
A247: All capital outlay expenditures over $5,000 must be approved in advance by the Department of Education. If the local school division has established a threshold of a lesser amount, items equal to that amount or greater must also receive prior approval by the Department of Education. Equipment quantities must be specified.
A250: Item Description | H250: Funding Source | L250: Quantities | N250: Total Cost
I261: Total for Object Code: | L261: =SUM(L251:M260) -> 0 | N261: =SUM(N251:P260) -> 0
A264: DETAILED BUDGET DESCRIPTION FOR OBJECT CODE 8000
A265: Provide a description for expenses related to object code 8000 not included in the justification above.
A268: Item Description | H268: Funding Source | L268: Quantities | N268: Total Cost
I279: Total for Object Code: | L279: =SUM(L269:M278) -> 0 | N279: =SUM(N269:P278) -> 0
L281: Total Budget | N281: =SUM(N117,N133,N150,N166,N182,N201,N218,N242,N261,N279) -> 0
A282: Page 34

Sheet GEPA
D1: School Division: | G1: ='Title I, Part C'!A16 -> ALBEMARLE COUNTY PUBLIC SCHOOLS | M1: Division Number: | P1: ='Title I, Part C'!I16 -> 2
A2: I. GENERAL EDUCATION PROVISIONS ACT (GEPA) SECTION 427
A4: Section 427 of the General Education Provisions Act (GEPA) requires applicants for federal funds to include in their applications a description of the steps the applicant will take to ensure equitable access to, and participation in, federally-assisted programs for students, teachers, and other program beneficiaries with special needs. The provision allows applicants discretion in developing the required description. The statute highlights six types of barriers that can impede equitable access or participation: gender, race, national origin, color, disability, or age. Based on local circumstances, the applicant should determine whether these or other barriers may prevent students, teachers, etc., from such access or participation in the federally-funded project or activity. The description in the application of steps to be taken to overcome these barriers need not be lengthy; the application may provide a clear and succinct description of how the applicant plans to address those barriers that are applicable to their circumstances.
A6: Describe the steps the division will take to ensure equitable access to, and participation in, grant-funded programs for students, teachers, and other program beneficiaries with special needs as required by the General Education Provisions Act (GEPA) 427, OMB Control No. 1894-00045, Section 427.
A7: Albemarle County is committed to providing equitable access for students, teachers and families in all grant-funded programs and opportunities as required by GEPA 427: 1.Ensuring all events are held in handicapped accessible facilities in geographically convenient locations. Events are held during the day, evening, and on weekends to accommodate family school/work schedules in order to maximize participation. 2. Materias provided are accessible for literate and non-readers as well as in electronic and paper copy formats to inform families that may not have access to social media and email. This includes translation of documents into Spanish and other languages as needed. The ESOL Office annually vets, hires and trains additional interpreters and translators to ensure a high-level of quality with a personalized experience for families. Simultaneous interpretation equipment is used in large-group settings, and InterpreTalk Language
A8: Line services are used when necessary. 3.Albemarle County conducts a variety of outreach programs to address gender and/or race inequalities. Some of these include: Teacher summer reading project, Girls in STEM initiatives, Summer Immersion Excursion programs for newcomers, Camp Invention modules, CoderDojo, World Peace Game, and Saturday family engagement experiences to STEM fairs and other local attractions. 4.Efforts to involve diverse stakeholders in program planning and implementation are robust and include seventeen diverse teams. Advisory groups include Parent Council, Student Advisory, Special Education, Gifted, Title I, and Diversity and Equity. Last but certainly not least, the Title I, Title III, Migrant and Homeless Coordinators all meet monthly with the Director of Federal Programs to collaborate and ensure our students have equitable access to all division opportunities.
A9: Page 35

Sheet Consortium Incentive Grants
M1: Place an "X" by the applicable response.
D2: Virginia Department of Education | N2: Original
D3: Office of Program Administration and Accountability
D4: P. O. Box 2120 | N4: Revision:
D5: Richmond, Virginia 23218-2120 | N5: Revision #
N6: Date:
F7: A. COVER PAGE | N7: Explain
E8: Title I, Part C, Education of Migratory Children | N8: Amendment:
D9: 2018-2019 Consortium Incentive Grant Application | N9: Amendment #
E10: Due by July 1, 2018 | N10: Date:
A11: Under the No Child Left Behind Act of 2001, Public Law 107-110 | B11: Elementary and Secondary Education Act of 1965 (ESEA), as amended by | N11: Explain
C12: the Every Student Succeeds Act of 2015 (ESSA), Public Law 114-95
A13: To be Completed by School Division
A14: Applicant (Legal Name of Agency) | H14: Division Number | J14: Title I, Part C, Coordinator
A15: ='Title I, Part C'!A16 -> ALBEMARLE COUNTY PUBLIC SCHOOLS | H15: ='Title I, Part C'!I16 -> 2 | J15: ='Title I, Part C'!J16:P16 -> Sharon Root
A18: LOCAL EDUCATIONAL AGENCY CERTIFICATION
A19: Use of Funds: The applicant designated above applies for an allocation of federal assistance as appropriated under ESEA. Funds are available to support local education reform efforts that are consistent with statewide education reform efforts to: 1) provide funding to implement promising education reform programs and school improvement programs based on evidence-based research; 2) provide a continuing source of innovative and educational improvement; 3) meet the educational needs of all students; and 4) develop and implement education programs to improve student achievement and teacher performance. Specific uses of funds for this application are found in the "Guidelines, Instructions, and Assurances" document.
A21: Assurances: The local educational agency assures that the Title I, Part C, program will be administered and implemented in compliance with all applicable statutes, regulations, policies, program plans, and applications. Additionally, the local educational agency agrees by signing below to implement the general and program specific assurances located in the “Application Guidelines, Instructions, and Assurances” document. The assurances and signed cover page are to be retained at the division level.
A23: Certification: We hereby certify that, to the best of our knowledge, the information contained in this application is correct. The agency named above has authorized us as its representatives to file this application.
A26: Superintendent/Agency Designee's Signature
A28: Superintendent/Agency Designee's Name
A30: Date
A33: An Award Notification is issued by the Virginia Department of Education through OMEGA once an application is fully approved and the allocation is available.
A34: Page 36
E35: School Division: | G35: ='Title I, Part C'!A16 -> ALBEMARLE COUNTY PUBLIC SCHOOLS | M35: Division Number: | P35: ='Title I, Part C'!I16 -> 2
A36: APPLICATION INFORMATION
A38: PROGRAM | J38: 2018-2019
J39: Allocation
A40: Title I, Part C, Education of Migratory Children, Consortium Incentive Grant | J40: =SUM(J41:L42) -> 0
A41: a. Division Allocation | H41: Subtotal
A42: b. Regional Program - Total of allocations for all divisions in the regional program | H42: Subtotal
A44: REVISIONS AND AMENDMENTS
A45: Place an "X" in the box indicating whether it is a revision or amendment. Enter the date of the revision or amendment. Indicate the tab(s) that have been changed. Provide a concise description of changes (for example, "Programmatic Changes--purchase of additional reading materials, object code 6000; Budget Changes--decreased travel budget in object code 5000 and increased materials to purchase additional reading materials in object code 6000"). When completing an amendment, changes to the program overview may be reflected as additions at the end of the narrative. NOTE: Any changes to the program budget should first be reflected in an amended application, followed by a budget transfer within 7 business days of approval of the amended application. Budget transfers will not be accepted without an approved amended application reflecting budget changes.
A46: 1. | B46: Revision | F46: Date:
B47: Amendment | F47: Date:
A49: 2. | B49: Revision | F49: Date:
B50: Amendment | F50: Date:
A52: 3. | B52: Revision | F52: Date:
B53: Amendment | F53: Date:
A55: 4. | B55: Revision | F55: Date:
B56: Amendment | F56: Date:
A58: 5. | B58: Revision | F58: Date:
B59: Amendment | F59: Date:
A61: 6. | B61: Revision | F61: Date:
B62: Amendment | F62: Date:
A64: 7. | B64: Revision | F64: Date:
B65: Amendment | F65: Date:
A67: Page 37
E68: School Division: | G68: ='Title I, Part C'!A16 -> ALBEMARLE COUNTY PUBLIC SCHOOLS | M68: Division Number: | P68: ='Title I, Part C'!I16 -> 2
A69: B. PROGRAM OVERVIEW
A70: In narrative format:
B71: Describe the instructional programs or program services to be developed with the requested federal funds based on the results of the division/regional comprehensive needs assessment. Include the targeted population(s). (Examples are: ESEA subgroups of students, homeless and migrant students, instructional and administrative staff, paraprofessionals, parents, etc.)
A78: Page 38
E79: School Division: | G79: ='Title I, Part C'!A16 -> ALBEMARLE COUNTY PUBLIC SCHOOLS | M79: Division Number: | P79: ='Title I, Part C'!I16 -> 2
A80: E. BUDGET SUMMARY
A81: Do the Budget Summary totals equal the Detailed Budget? | N81: =IF(SUM(K115)=SUM(R139,R155,R172,R187,R202,R221,R238,R258,R274,R290),"Yes","No -please review your entries.") -> Yes
A82: OBJECT
A83: CODE | B83: EXPENDITURE | G83: AMOUNT BUDGETED | L83: FTEs
A84: 1000 - Personal Services | B84: Administration
B85: Teachers
B86: Paraprofessionals
B87: Other
B88: Total Personal Services | G88: =SUM(G84:K87) -> 0
A89: 2000 - Employee Benefits | B89: Fixed Charges
B90: (Administrative and Instruction)
B91: Total Employee Benefits | G91: =SUM(G89:K90) -> 0
A92: 3000 - Purchased/ Contracted Services | B92: Supportive Services (Med., Dental)
B93: Evaluation Services
B94: Professional Development
B95: Other
B96: Total Purchased/Contracted Services | G96: =SUM(G92:K95) -> 0
A97: 4000 - Internal Services | B97: Pupil Transportation
B98: Food Services
B99: Other
B100: Total Internal Services | G100: =SUM(G97:K99) -> 0
A101: 5000 - Other Charges | B101: Travel (Staff/Administrative)
B102: Maintenance of Plant
B103: Operation of Plant
B104: Indirect Cost
B105: Other
B106: Total Other charges | G106: =SUM(G101:K105) -> 0
A107: 6000 - Materials and Supplies | B107: Administrative
B108: Instructional
B109: Total Materials and Supplies | G109: =SUM(G107:K108) -> 0
A110: 8000 - Capital Outlay | B110: Equipment for Instruction
B111: Buildings
B112: Remodeling
B113: All Other Equipment
B114: Total Capital Outlay | G114: =SUM(G110:K113) -> 0
B115: TOTAL BUDGET | G115: =SUM(G114,G109,G106,G100,G96,G91,G88) -> 0
A117: Note: | B117: Object codes 7000 and 9000 are not used in application budgets or in requests for reimbursements for this federal grant.
A118: Note: | B118: Expenses for parental involvement programs are to be incorporated into the appropriate object code(s) based on the category of the related charges.
A120: Page 39
E121: School Division: | G121: ='Title I, Part C'!A16 -> ALBEMARLE COUNTY PUBLIC SCHOOLS | M121: Division Number: | P121: ='Title I, Part C'!I16 -> 2
A122: DETAILED BUDGET BREAKDOWN
A123: Include a detailed breakdown of the budget categories for Object Codes 1000-6000 and 8000, as shown on page 39.
A125: DETAILED BUDGET DESCRIPTION OF OBJECT CODE 1000
A126: If applicable, indicate the positions and FTEs supported with funds from this program.
A129: Item Description | L129: FTEs | N129: Total Cost
H139: Total for Object Code: | L139: =SUM(L130:M138) -> 0 | N139: =SUM(N130:P138) -> 0
A142: DETAILED BUDGET DESCRIPTION OF OBJECT CODE 2000
A143: Indicate the fixed charge categories (such as FICA, health insurance, etc.) and specify the amount of each.
A146: Item Description | N146: Total Cost
J155: Total for Object Code: | N155: =SUM(N147:P154) -> 0
A157: Page 40
E158: School Division: | G158: ='Title I, Part C'!A16 -> ALBEMARLE COUNTY PUBLIC SCHOOLS | M158: Division Number: | P158: ='Title I, Part C'!I16 -> 2
A159: JUSTIFICATION FOR PROFESSIONAL DEVELOPMENT - OBJECT CODE 3000
A160: If program funds are expended for professional development, justify such expenditures by demonstrating a relationship between the proposed expenditure for professional development and the program services and activities described in the application. Please indicate how these funds will support any services and activities that are described in this application.
A163: Item Description | N163: Total Cost
J172: Total for Object Code: | N172: =SUM(N164:P171) -> 0
A175: DETAILED BUDGET DESCRIPTION OF OBJECT CODE 3000
A176: Provide a description of evaluation services or other expenses related to purchased or contracted services that are not related to the professional development detailed above.
A179: Item Description | N179: Total Cost
J187: Total for Object Code: | N187: =SUM(N180:P186) -> 0
A189: Page 41
E190: School Division: | G190: ='Title I, Part C'!A16 -> ALBEMARLE COUNTY PUBLIC SCHOOLS | M190: Division Number: | P190: ='Title I, Part C'!I16 -> 2
A191: JUSTIFICATION FOR INTERNAL SERVICES - OBJECT CODE 4000
A192: If program funds are expended for internal services, describe these services below.
A195: Item Description | N195: Total Cost
J202: Total for Object Code: | N202: =SUM(N196:P201) -> 0
A205: JUSTIFICATION FOR TRAVEL COSTS - OBJECT CODE 5000
A206: Travel must be justified by demonstrating a relationship between the proposed travel and the needs of the program. Please indicate the estimated cost.
A209: Item Description | N209: Total Cost
J221: Total for Object Code: | N221: =SUM(N210:P220) -> 0
A223: Page 42
E224: School Division: | G224: ='Title I, Part C'!A16 -> ALBEMARLE COUNTY PUBLIC SCHOOLS | M224: Division Number: | P224: ='Title I, Part C'!I16 -> 2
A225: DETAILED BUDGET DESCRIPTION FOR OBJECT CODE 5000
A226: If applicable, indicate indirect costs charged to this program. Indirect costs cannot be claimed against capital outlay and equipment.
A229: Item Description | N229: Total Cost
J238: Total for Object Code: | N238: =SUM(N230:P237) -> 0
A240: JUSTIFICATION FOR MATERIALS AND SUPPLIES - OBJECT CODE 6000
A241: Provide a description of materials, supplies, and all equipment less than $5,000 per unit. Indicate the equipment quantity.
A244: Item Description | L244: Quantities | N244: Total Cost
H258: Total for Object Code: | L258: =SUM(L245:M257) -> 0 | N258: =SUM(N245:P257) -> 0
A259: Page 43
E260: School Division: | G260: ='Title I, Part C'!A16 -> ALBEMARLE COUNTY PUBLIC SCHOOLS | M260: Division Number: | P260: ='Title I, Part C'!I16 -> 2
A261: JUSTIFICATION FOR CAPITAL OUTLAY - OBJECT CODE 8000
A262: All capital outlay expenditures over $5,000 must be approved in advance by the Department of Education. If the local school division has established a threshold of a lesser amount, items equal to that amount or greater must also receive prior approval by the Department of Education. Equipment quantities must be specified.
A265: Item Description | L265: Quantities | N265: Total Cost
H274: Total for Object Code: | L274: =SUM(L266:M273) -> 0 | N274: =SUM(N266:P273) -> 0
A277: DETAILED BUDGET DESCRIPTION FOR OBJECT CODE 8000
A278: Provide a description for expenses related to object code 8000 not included in the justification above.
A281: Item Description | L281: Quantities | N281: Total Cost
H290: Total for Object Code: | L290: =SUM(L282:P289) -> 0 | N290: =SUM(N282:P289) -> 0
A292: Page 44
E293: School Division: | G293: ='Title I, Part C'!A16 -> ALBEMARLE COUNTY PUBLIC SCHOOLS | M293: Division Number: | P293: ='Title I, Part C'!I16 -> 2
A294: EXPENDITURE ACCOUNTS DESCRIPTIONS
A296: These accounts are for budgeting and recording expenditures of the educational agency for activities under its control. Below are definitions of the major expenditure categories. The descriptions provided are examples only. For further clarification on the proper expenditures of funds, contact your school division budget or finance office, the grant specialist in the Virginia Department of Education, or refer to the appropriate federal act.
A297: OBJECT CODE DEFINITIONS:
A298: (revised 5/16/17)
A300: 1000 | B300: PERSONAL SERVICES - Includes all compensation for the direct labor of persons in the employment of the local government. Salaries and wages paid to employees for full‐ and part‐time work, including overtime, shift differential, and similar compensation. Includes payments for time not worked, including sick leave, vacation, holidays, jury duty, military leave, and other paid absences that are earned during the reporting period. For the purposes of this report, the term “salaries” means all compensation including base wage. This also includes amounts paid through salary reduction plans, such as tax‐sheltered annuities and flexible benefit plans. Do not confuse this definition with the Virginia Retirement System (VRS) definition, which excludes supplements for retirement calculation purposes in some circumstances.
A302: 2000 | B302: EMPLOYEE BENEFITS - Job related benefits provided to employees as part of their total compensation. Fringe benefits include the employer’s portion of FICA, pensions, insurance (life, health, disability income, etc.) and employee allowances. NOTE: Fringe Benefits are a significant component of employee compensation and, like salaries and wages, are charged to the appropriate object of expenditure within each program. If possible, fringe benefit costs should be charged to the applicable educational program or activity on an ongoing basis. An alternative is to charge all fringe benefits to various benefit accounts. As part of the year‐end closing process, these accounts are closed, and all costs are allocated to the appropriate educational program or activity. The following methods are suggested for allocating such cost at year‐end. If these methods do not provide reasonable allocations based on circumstances within the school division, then the school division should use another reasonable allocation method. Consistency in application should be maintained at all times. • Allocation by percentage of payroll dollars • Allocation by Head Count • Direct to Program or Activity
A304: Page 45
A305: 3000 | B305: PURCHASED/CONTRACTUAL SERVICES - Services acquired from outside sources (i.e., private vendors, public authorities, or other governmental entities). Purchase of the service is on a fee basis or fixed time contract basis. Payments for rentals and utilities are not included in this account description. Allowable payments would be to individual or firms that are independent contractors and not employees of the grantee or sub‐grantee organization. The word honorarium is sometimes used to characterize such payments; the term “fee” is preferred. • Food Purchases – Prepared meals, working meals, and/or catered services purchased through a vendor are included in this object code. Reimbursement is capped at the per diem rate for the meal listed according to the state travel regulations. Examples for this object code include meals provided during day‐long professional development sessions, or meals provided to support attendance at family engagement activities. Food purchased from catering services and restaurants such as Pizza Hut, Panera Bread, and Subway is included in this object code. • Transportation Services Public Carriers – Payments to public carriers for transportation of pupils on vehicles that are used by the public. Include payments for pupils transported in intra‐city transit buses, taxicabs, airplanes, and intercity/interstate passenger buses. • Transportation Services Private Carriers – Payments (either cash or tokens) to parents for transportation of pupils in lieu of providing transportation on school buses. Include allowable payments to parents for pupils attending public, private, and non‐sectarian schools. Include costs associated with transporting special education students in school board‐owned vehicles to and from school.
B306: • Transportation Services by Contract – Payments to private owners of school buses who contract with the school board to transport pupils to and from public schools. Include payments to owners of private vehicles that contract with the school board to transport pupils to and from designated public and private schools. • Purchase of Service from Other Governmental Entities – Payments for services purchased from other governmental entities (i.e., other local governments, public authorities, state agencies, and other LEAs) on a contract/fee basis. Tuition payments to other local governments for a jointly operated center are not included here but are reported under “Payments to Joint Operations” (object code 7000). • Tuition Paid – Other Divisions In‐State, Tuition Paid – Other Divisions Out‐of‐State, and Tuition Paid – Private Schools are included in this object code.
A308: 4000 | B308: INTERNAL SERVICES - Charges from an Internal Service Fund to other functions/activities/elements of the local government for the use of intergovernmental services, such as data processing, automotive/motor pool, central purchasing/central stores, print shop, and risk management. These services are provided by internal services within the School District and possibly the county but not a vendor. • Food Purchases – Food purchased from the food services department of a school division or subgrantee equivalent to support professional development or family engagement events is included in this object code. For example, internal expenses for school cafeterias to provide meals to support attendance at family engagement activities are included in this object code.
A310: Page 46
A311: 5000 | B311: OTHER CHARGES - Include expenditures that support the use of programs. Includes expenditures that support the program, including utilities (maintenance and operation of plant), staff/administrative/consultant travel, office phone charges, training, leases/rental, indirect cost, and other. • Food Purchases – Food Purchases under this object code is restricted to food purchases related to travel reimbursement for meals only (see Travel below). If the sub‐recipient’s internal travel policies conform to state travel regulations, reimbursement is allowable at per diem meals rates according to state travel regulations. If the sub‐recipient’s internal travel policies require reimbursement for the cost of each meal, reimbursement is capped at the per diem rate for the meal listed according to the state travel regulations. Sub‐recipients must elect either meals per diem or per meals costs as their internal travel policy. • Telecommunications – Include expenditures for recurring telecommunications services for the use of on‐line computer technology (e.g., telephone/telecommunications line charges). Telephone charges for line service for Internet connectivity and the Electronic Classroom program. • Utilities – Payments for heat, electricity, water, and sewer services regardless of whether the service is provided by a private enterprise authority or an enterprise fund operated by a local government. • Communications – Payments for postal, messenger, and telecommunications services, typically office voice telephone charges. (Telecommunication costs directly related to technology uses should be coded under 6000.) In addition, office telephone charges would be coded under this code.
B312: • Insurance – Payments for insurance except those that relate to personal services (i.e., hospitalization, group life, worker’s compensation, unemployment) • Leases and Rentals – Includes payments for leases that are not capitalized and rental of land, structures, and equipment. Do not include payments made under a lease‐purchase agreement. • Travel – includes payments for travel reimbursement for staff/administrative/consultant travel. These are travel costs that are being reimbursed directly to travelers. These costs may include lodging, mileage, meals, and incidentals as allowable according to state travel regulations or documented subrecipient internal travel policies. If the sub‐recipient does not have documented internal travel policies, state travel regulations will prevail. • Contributions to Other Entities – Includes payments to other governmental entities or community organizations that are not related to the direct purchase of a service on a fee basis (which is reported under object code 3000) or payments to joint operations (which are reflected under object code 7000). • Public Assistance Payments – Payments to individuals for public assistance programs (general government use only). • Miscellaneous Other Charges – Includes expenditures that support the program, including indirect costs and other costs.
A314: Page 47
A315: 6000 | B315: MATERIALS AND SUPPLIES - Includes articles and commodities that are consumed or materially altered when used and minor equipment that is not capitalized. This includes any equipment purchased under $5,000, unless the LEA has set a lower capitalization threshold. Therefore, computer equipment under $5,000 would be reported in “materials and supplies.” • Food Purchases – Food items purchased from a grocery store or its equivalent for snacks or breaks is included in this object code. Examples include bottled water, granola bars, cookies, and fruit purchased from a store such as Wal‐Mart, Food Lion, Costco, etc. Prepared meals is not included in this object code; see object code 3000 for prepared/working/catered meals as purchased/contracted services. • Vehicle and Powered Equipment Fuels – Gasoline, lubricating oils, or such other fuel used in the operation of vehicles and powered equipment (e.g., lawnmowers) purchased from private sources or governmental agencies. • Vehicle and Powered Equipment Supplies – Tires, spark plugs, batteries, and chains used in the operation of vehicles and powered equipment purchased from private sources or governmental agencies. • Textbooks – All textbooks and workbooks purchased to be used in the classroom. • Instructional Materials – Books (not textbooks) and other materials.
B316: • Technology Software/On‐line Content – Include expenditures for videodiscs and computer programs used in the classroom for instructional purposes, operating system software (i.e., standalone software, not software that is pre‐installed and included in hardware costs), application software, and on‐line or downloadable software and content. Include expenditures for both additions and replacement. • Non‐Capitalized Technology Hardware – Include expenditures for hardware or classroom technology equipment that is not capitalized. • Non‐Capitalized Technology Infrastructure – Include expenditures for technology infrastructure that is not capitalized.
A318: Page 48
A319: 8000 | B319: CAPITAL OUTLAY - Note: Indirect cost cannot be claimed against capital outlay and equipment. Outlays that result in the acquisition of or additions to fixed assets. Capital Outlay includes the purchase of fixed assets both replacement and/or additional. Capital Outlay Replacement • Technology – Hardware Replacements – Include capital outlay for replacement of hardware or classroom technology equipment. (For further clarification on which expenditures should be included in this object code, see the “Special Note” below.) • Technology – Infrastructure Replacements – Include capital outlay for replacement of technology infrastructure. (For further clarification on which expenditures should be included in this object code, see the “Special Note” below.) • Capital Outlay Additions – Include machinery, equipment, furniture, fixtures, communications equipment, motor vehicles, etc. that are capitalized. • Technology – Hardware Additions – Include capital outlay for additional hardware or classroom technology equipment. (For further clarification on which expenditures should be included in this object code, see the “Special Note” below.) • Technology – Infrastructure Additions – Include capital outlay for additional technology infrastructure. (For further clarification on which expenditures should be included in this object code, see the “Special Note” below.)
B320: • Special Note ‐ Classification of Hardware and Infrastructure Expenditures: Report expenditures under technology “hardware” for computers, associated peripheral equipment, and other specialized technology equipment. Computers include desktop and laptop machines, handheld computers (i.e., Personal Digital Assistants or PDAs), and mainframe machines. Peripheral equipment includes devices attached to computers, such as monitors, keyboards, disk drives, modems, printers, scanners, cameras and speakers, etc. Report other specialized computer devices under technology “hardware” such as fax‐back and voicemail resources; videoconferencing and other distance education tools, including satellite transmitters and receivers; cable‐based receivers; and modem or codec‐based video equipment; projection devices, from transparent and opaque projectors to video monitors; and graphing calculators and other specialized computational aids. Report expenditures under technology “infrastructure” for equipment and devices that enable the linking of computers or video hardware to networks (such as routers, hubs, switches, access servers, modems, or codecs). Infrastructure also refers to cabling installations, whether wire, fiber optic, or coaxial, as well as electrical capacity expansion or HVAC upgrades to support networks. In wireless networking systems, include receivers and transmitters under infrastructure.
A322: Page 49
E323: School Division: | G323: ='Title I, Part C'!A16 -> ALBEMARLE COUNTY PUBLIC SCHOOLS | M323: Division Number: | P323: ='Title I, Part C'!I16 -> 2
A324: F. TITLE I, PART C, REGIONAL PROGRAM AGREEMENT 2018-2019
A326: The lead school division will be responsible for completing the application and serving as the fiscal agent. One (1) application should be submitted per regional program, and one (1) certification should be submitted by each participating school division to the lead school division.
A327: Lead Regional Program School Division
A328: Name of Lead: | L328: School Division
A329: School Division: | L329: Number:
A331: Typed Name of Superintendent:
A332: Signature of Superintendent: | M332: Date:
A334: Type name of contact for Title I, Part C, regional program if different than superintendent:
A335: Title I, Part C, Contact:
A337: Title:
A339: Mailing Address:
A341: City, State, Zip:
A343: Telephone: | F343: E-mail: | M343: Fax:
A347: LIST OF PARTICIPATING SCHOOL DIVISIONS
A348: The following school divisions have applied to participate in this regional program. A Title I, Part C, participating regional program member certification form is on file for each of the school divisions listed. The Title I, Part C, subgrant award corresponds to the 2018-2019 allocation.
D350: Name of School Division | J350: Division Number
D351: 1.
D352: 2.
D353: 3.
D354: 4.
D355: 5.
D356: 6.
D357: 7.
D358: 8.
D359: 9.
D360: 10.
D361: 11.
D362: 12.
A367: Page 50

Sheet Sheet1 (hidden)
A2: Title II, Part A, Transferability
A3: Title IV, Part A, Transferability
